{"text_format":"1","workbook":"xlsx","n_sheets":2,"sheets":["Sheet1","Sheet2"],"not_rendered":{"charts":0,"images":0,"macros":0,"external_links":0,"defined_names":1,"comments":0,"pivot_tables":0},"unopened":[],"bounds":{"document_bytes":16777216,"sheet_cells":100000,"rows_first":2000,"rows_last":500,"rows_between":2000,"halvings":0,"cell_chars":16384,"cell_head_chars":4096},"cells_cut":0,"cells_raw":0,"read":"whole","date_system":"1900"}

{"sheet":"Sheet1","index":0,"n_rows":1112,"n_cols":24,"rows_kept":1112,"cut":false,"hidden":false,"merged":[]}
[]
["(Your Company Name)"]
[]
[]
["Item",null,null,"Location/Description",null,"Scope of",null,"Age",null,"Quantity",null,null,"Replacement",null,null,null,"Depreciation",null,null,null,"Actual"]
["#",null,null,null,null,"Damage",null,null,null,null,null,null,"Cost Estimate",null,null,null,null,null,null,null,"Cash"]
[null,null,null,null,null,null,null,null,null,null,null,null,"Unit",null,"Total",null,"%",null,"$",null,"Value Est."]
[]
[]
["R=Replace     C=Clean     P=Paint     L=Launder     D=Dry Clean     S=Service"]
[]
["INSURED:"]
["CLAIM #:"]
[]
[1]
[{"$f":"+A15+1","v":2},null,null,null,null,null,null,null,null,null,null,null,null,null,{"$f":"J16*M16","v":0},null,null,null,{"$f":"O16*Q16","v":0},null,{"$f":"O16-S16","v":0},null,{"$f":"IF(ISBLANK(V16),\"\",IF(AND(V16=\"c\",M16>175),(M16-175)*J16,O16))","v":""},{"$f":"IF(ISBLANK(V16),\"\",S16)","v":""}]
[{"$f":"+A16+1","v":3},null,null,null,null,null,null,null,null,null,null,null,null,null,{"$f":"J17*M17","v":0},null,null,null,{"$f":"O17*Q17","v":0},null,{"$f":"O17-S17","v":0},null,{"$f":"IF(ISBLANK(V17),\"\",IF(AND(V17=\"c\",M17>175),(M17-175)*J17,O17))","v":""},{"$f":"IF(ISBLANK(V17),\"\",S17)","v":""}]
[4,null,null,null,null,null,null,null,null,null,null,null,null,null,0,null,null,null,0,null,0,null,"",""]
[5,null,null,null,null,null,null,null,null,null,null,null,null,null,0,null,null,null,0,null,0,null,"",""]
[6,null,null,null,null,null,null,null,null,null,null,null,null,null,0,null,null,null,0,null,0,null,"",""]
[7,null,null,null,null,null,null,null,null,null,null,null,null,null,0,null,null,null,0,null,0,null,"",""]
[8,null,null,null,null,null,null,null,null,null,null,null,null,null,0,null,null,null,0,null,0,null,"",""]
[9,null,null,null,null,null,null,null,null,null,null,null,null,null,0,null,null,null,0,null,0,null,"",""]
[10,null,null,null,null,null,null,null,null,null,null,null,null,null,0,null,null,null,0,null,0,null,"",""]
[11,null,null,null,null,null,null,null,null,null,null,null,null,null,0,null,null,null,0,null,0,null,"",""]
[12,null,null,null,null,null,null,null,null,null,null,null,null,null,0,null,null,null,0,null,0,null,"",""]
[13,null,null,null,null,null,null,null,null,null,null,null,null,null,0,null,null,null,0,null,0,null,"",""]
[14,null,null,null,null,null,null,null,null,null,null,null,null,null,0,null,null,null,0,null,0,null,"",""]
[15,null,null,null,null,null,null,null,null,null,null,null,null,null,0,null,null,null,0,null,0,null,"",""]
[16,null,null,null,null,null,null,null,null,null,null,null,null,null,0,null,null,null,0,null,0,null,"",""]
[17,null,null,null,null,null,null,null,null,null,null,null,null,null,0,null,null,null,0,null,0,null,"",""]
[18,null,null,null,null,null,null,null,null,null,null,null,null,null,0,null,null,null,0,null,0,null,"",""]
[{"$f":"+A32+1","v":19},null,null,null,null,null,null,null,null,null,null,null,null,null,{"$f":"J33*M33","v":0},null,null,null,{"$f":"O33*Q33","v":0},null,{"$f":"O33-S33","v":0},null,"",""]
[20,null,null,null,null,null,null,null,null,null,null,null,null,null,0,null,null,null,0,null,0,null,"",""]
[21,null,null,null,null,null,null,null,null,null,null,null,null,null,0,null,null,null,0,null,0,null,"",""]
[22,null,null,null,null,null,null,null,null,null,null,null,null,null,0,null,null,null,0,null,0,null,"",""]
[23,null,null,null,null,null,null,null,null,null,null,null,null,null,0,null,null,null,0,null,0,null,"",""]
[24,null,null,null,null,null,null,null,null,null,null,null,null,null,0,null,null,null,0,null,0,null,"",""]
[25,null,null,null,null,null,null,null,null,null,null,null,null,null,0,null,null,null,0,null,0,null,"",""]
[26,null,null,null,null,null,null,null,null,null,null,null,null,null,0,null,null,null,0,null,0,null,"",""]
[27,null,null,null,null,null,null,null,null,null,null,null,null,null,0,null,null,null,0,null,0,null,"",""]
[28,null,null,null,null,null,null,null,null,null,null,null,null,null,0,null,null,null,0,null,0,null,"",""]
[29,null,null,null,null,null,null,null,null,null,null,null,null,null,0,null,null,null,0,null,0,null,"",""]
[30,null,null,null,null,null,null,null,null,null,null,null,null,null,0,null,null,null,0,null,0,null,"",""]
[31,null,null,null,null,null,null,null,null,null,null,null,null,null,0,null,null,null,0,null,0,null,"",""]
[32,null,null,null,null,null,null,null,null,null,null,null,null,null,0,null,null,null,0,null,0,null,"",""]
[33,null,null,null,null,null,null,null,null,null,null,null,null,null,0,null,null,null,0,null,0,null,"",""]
[34,null,null,null,null,null,null,null,null,null,null,null,null,null,0,null,null,null,0,null,0,null,"",""]
[{"$f":"+A48+1","v":35},null,null,null,null,null,null,null,null,null,null,null,null,null,{"$f":"J49*M49","v":0},null,null,null,{"$f":"O49*Q49","v":0},null,{"$f":"O49-S49","v":0},null,"",""]
[36,null,null,null,null,null,null,null,null,null,null,null,null,null,0,null,null,null,0,null,0,null,"",""]
[37,null,null,null,null,null,null,null,null,null,null,null,null,null,0,null,null,null,0,null,0,null,"",""]
[38,null,null,null,null,null,null,null,null,null,null,null,null,null,0,null,null,null,0,null,0,null,"",""]
[39,null,null,null,null,null,null,null,null,null,null,null,null,null,0,null,null,null,0,null,0,null,"",""]
[40,null,null,null,null,null,null,null,null,null,null,null,null,null,0,null,null,null,0,null,0,null,"",""]
[41,null,null,null,null,null,null,null,null,null,null,null,null,null,0,null,null,null,0,null,0,null,"",""]
[42,null,null,null,null,null,null,null,null,null,null,null,null,null,0,null,null,null,0,null,0,null,"",""]
[43,null,null,null,null,null,null,null,null,null,null,null,null,null,0,null,null,null,0,null,0,null,"",""]
[44,null,null,null,null,null,null,null,null,null,null,null,null,null,0,null,null,null,0,null,0,null,"",""]
[45,null,null,null,null,null,null,null,null,null,null,null,null,null,0,null,null,null,0,null,0,null,"",""]
[46,null,null,null,null,null,null,null,null,null,null,null,null,null,0,null,null,null,0,null,0,null,"",""]
[47,null,null,null,null,null,null,null,null,null,null,null,null,null,0,null,null,null,0,null,0,null,"",""]
[48,null,null,null,null,null,null,null,null,null,null,null,null,null,0,null,null,null,0,null,0,null,"",""]
[49,null,null,null,null,null,null,null,null,null,null,null,null,null,0,null,null,null,0,null,0,null,"",""]
[50,null,null,null,null,null,null,null,null,null,null,null,null,null,0,null,null,null,0,null,0,null,"",""]
[{"$f":"+A64+1","v":51},null,null,null,null,null,null,null,null,null,null,null,null,null,{"$f":"J65*M65","v":0},null,null,null,{"$f":"O65*Q65","v":0},null,{"$f":"O65-S65","v":0},null,"",""]
[52,null,null,null,null,null,null,null,null,null,null,null,null,null,0,null,null,null,0,null,0,null,"",""]
[53,null,null,null,null,null,null,null,null,null,null,null,null,null,0,null,null,null,0,null,0,null,"",""]
[54,null,null,null,null,null,null,null,null,null,null,null,null,null,0,null,null,null,0,null,0,null,"",""]
[55,null,null,null,null,null,null,null,null,null,null,null,null,null,0,null,null,null,0,null,0,null,"",""]
[56,null,null,null,null,null,null,null,null,null,null,null,null,null,0,null,null,null,0,null,0,null,"",""]
[57,null,null,null,null,null,null,null,null,null,null,null,null,null,0,null,null,null,0,null,0,null,"",""]
[58,null,null,null,null,null,null,null,null,null,null,null,null,null,0,null,null,null,0,null,0,null,"",""]
[59,null,null,null,null,null,null,null,null,null,null,null,null,null,0,null,null,null,0,null,0,null,"",""]
[60,null,null,null,null,null,null,null,null,null,null,null,null,null,0,null,null,null,0,null,0,null,"",""]
[61,null,null,null,null,null,null,null,null,null,null,null,null,null,0,null,null,null,0,null,0,null,"",""]
[62,null,null,null,null,null,null,null,null,null,null,null,null,null,0,null,null,null,0,null,0,null,"",""]
[63,null,null,null,null,null,null,null,null,null,null,null,null,null,0,null,null,null,0,null,0,null,"",""]
[64,null,null,null,null,null,null,null,null,null,null,null,null,null,0,null,null,null,0,null,0,null,"",""]
[65,null,null,null,null,null,null,null,null,null,null,null,null,null,0,null,null,null,0,null,0,null,"",""]
[66,null,null,null,null,null,null,null,null,null,null,null,null,null,0,null,null,null,0,null,0,null,"",""]
[{"$f":"+A80+1","v":67},null,null,null,null,null,null,null,null,null,null,null,null,null,{"$f":"J81*M81","v":0},null,null,null,{"$f":"O81*Q81","v":0},null,{"$f":"O81-S81","v":0},null,{"$f":"IF(ISBLANK(V81),\"\",IF(AND(V81=\"c\",M81>175),(M81-175)*J81,O81))","v":""},{"$f":"IF(ISBLANK(V81),\"\",S81)","v":""}]
[68,null,null,null,null,null,null,null,null,null,null,null,null,null,0,null,null,null,0,null,0,null,"",""]
[69,null,null,null,null,null,null,null,null,null,null,null,null,null,0,null,null,null,0,null,0,null,"",""]
[70,null,null,null,null,null,null,null,null,null,null,null,null,null,0,null,null,null,0,null,0,null,"",""]
[71,null,null,null,null,null,null,null,null,null,null,null,null,null,0,null,null,null,0,null,0,null,"",""]
[72,null,null,null,null,null,null,null,null,null,null,null,null,null,0,null,null,null,0,null,0,null,"",""]
[73,null,null,null,null,null,null,null,null,null,null,null,null,null,0,null,null,null,0,null,0,null,"",""]
[74,null,null,null,null,null,null,null,null,null,null,null,null,null,0,null,null,null,0,null,0,null,"",""]
[75,null,null,null,null,null,null,null,null,null,null,null,null,null,0,null,null,null,0,null,0,null,"",""]
[76,null,null,null,null,null,null,null,null,null,null,null,null,null,0,null,null,null,0,null,0,null,"",""]
[77,null,null,null,null,null,null,null,null,null,null,null,null,null,0,null,null,null,0,null,0,null,"",""]
[78,null,null,null,null,null,null,null,null,null,null,null,null,null,0,null,null,null,0,null,0,null,"",""]
[79,null,null,null,null,null,null,null,null,null,null,null,null,null,0,null,null,null,0,null,0,null,"",""]
[80,null,null,null,null,null,null,null,null,null,null,null,null,null,0,null,null,null,0,null,0,null,"",""]
[81,null,null,null,null,null,null,null,null,null,null,null,null,null,0,null,null,null,0,null,0,null,"",""]
[82,null,null,null,null,null,null,null,null,null,null,null,null,null,0,null,null,null,0,null,0,null,"",""]
[{"$f":"+A96+1","v":83},null,null,null,null,null,null,null,null,null,null,null,null,null,{"$f":"J97*M97","v":0},null,null,null,{"$f":"O97*Q97","v":0},null,{"$f":"O97-S97","v":0},null,"",""]
[84,null,null,null,null,null,null,null,null,null,null,null,null,null,0,null,null,null,0,null,0,null,"",""]
[85,null,null,null,null,null,null,null,null,null,null,null,null,null,0,null,null,null,0,null,0,null,"",""]
[86,null,null,null,null,null,null,null,null,null,null,null,null,null,0,null,null,null,0,null,0,null,"",""]
[87,null,null,null,null,null,null,null,null,null,null,null,null,null,0,null,null,null,0,null,0,null,"",""]
[88,null,null,null,null,null,null,null,null,null,null,null,null,null,0,null,null,null,0,null,0,null,"",""]
[89,null,null,null,null,null,null,null,null,null,null,null,null,null,0,null,null,null,0,null,0,null,"",""]
[90,null,null,null,null,null,null,null,null,null,null,null,null,null,0,null,null,null,0,null,0,null,"",""]
[null,null,null,null,null,null,null,null,null,null,null,null,null,null,{"$f":"J105*M105","v":0},null,null,null,{"$f":"O105*Q105","v":0},null,{"$f":"O105-S105","v":0},null,""]
[null,null,null,null,null,null,null,null,null,null,null,null,null,null,{"$f":"J106*M106","v":0},null,null,null,{"$f":"O106*Q106","v":0},null,{"$f":"O106-S106","v":0},null,""]
[1,null,null,null,null,null,null,null,null,null,null,null,null,null,{"$f":"J107*M107","v":0},null,null,null,{"$f":"O107*Q107","v":0},null,{"$f":"O107-S107","v":0},null,"",""]
[2,null,null,null,null,null,null,null,null,null,null,null,null,null,0,null,null,null,0,null,0,null,"",""]
[3,null,null,null,null,null,null,null,null,null,null,null,null,null,0,null,null,null,0,null,0,null,"",""]
[4,null,null,null,null,null,null,null,null,null,null,null,null,null,0,null,null,null,0,null,0,null,"",""]
[5,null,null,null,null,null,null,null,null,null,null,null,null,null,0,null,null,null,0,null,0,null,"",""]
[6,null,null,null,null,null,null,null,null,null,null,null,null,null,0,null,null,null,0,null,0,null,"",""]
[{"$f":"+A112+1","v":7},null,null,null,null,null,null,null,null,null,null,null,null,null,{"$f":"J113*M113","v":0},null,null,null,{"$f":"O113*Q113","v":0},null,{"$f":"O113-S113","v":0},null,"",""]
[8,null,null,null,null,null,null,null,null,null,null,null,null,null,0,null,null,null,0,null,0,null,"",""]
[9,null,null,null,null,null,null,null,null,null,null,null,null,null,0,null,null,null,0,null,0,null,"",""]
[10,null,null,null,null,null,null,null,null,null,null,null,null,null,0,null,null,null,0,null,0,null,"",""]
[11,null,null,null,null,null,null,null,null,null,null,null,null,null,0,null,null,null,0,null,0,null,"",""]
[12,null,null,null,null,null,null,null,null,null,null,null,null,null,0,null,null,null,0,null,0,null,"",""]
[13,null,null,null,null,null,null,null,null,null,null,null,null,null,0,null,null,null,0,null,0,null,"",""]
[14,null,null,null,null,null,null,null,null,null,null,null,null,null,0,null,null,null,0,null,0,null,"",""]
[15,null,null,null,null,null,null,null,null,null,null,null,null,null,0,null,null,null,0,null,0,null,"",""]
[16,null,null,null,null,null,null,null,null,null,null,null,null,null,0,null,null,null,0,null,0,null,"",""]
[17,null,null,null,null,null,null,null,null,null,null,null,null,null,0,null,null,null,0,null,0,null,"",""]
[18,null,null,null,null,null,null,null,null,null,null,null,null,null,0,null,null,null,0,null,0,null,"",""]
[19,null,null,null,null,null,null,null,null,null,null,null,null,null,0,null,null,null,0,null,0,null,"",""]
[20,null,null,null,null,null,null,null,null,null,null,null,null,null,0,null,null,null,0,null,0,null,"",""]
[21,null,null,null,null,null,null,null,null,null,null,null,null,null,0,null,null,null,0,null,0,null,"",""]
[22,null,null,null,null,null,null,null,null,null,null,null,null,null,0,null,null,null,0,null,0,null,"",""]
[{"$f":"+A128+1","v":23},null,null,null,null,null,null,null,null,null,null,null,null,null,{"$f":"J129*M129","v":0},null,null,null,{"$f":"O129*Q129","v":0},null,{"$f":"O129-S129","v":0},null,"",""]
[24,null,null,null,null,null,null,null,null,null,null,null,null,null,0,null,null,null,0,null,0,null,"",""]
[25,null,null,null,null,null,null,null,null,null,null,null,null,null,0,null,null,null,0,null,0,null,"",""]
[26,null,null,null,null,null,null,null,null,null,null,null,null,null,0,null,null,null,0,null,0,null,"",""]
[27,null,null,null,null,null,null,null,null,null,null,null,null,null,0,null,null,null,0,null,0,null,"",""]
[28,null,null,null,null,null,null,null,null,null,null,null,null,null,0,null,null,null,0,null,0,null,"",""]
[29,null,null,null,null,null,null,null,null,null,null,null,null,null,0,null,null,null,0,null,0,null,"",""]
[30,null,null,null,null,null,null,null,null,null,null,null,null,null,0,null,null,null,0,null,0,null,"",""]
[31,null,null,null,null,null,null,null,null,null,null,null,null,null,0,null,null,null,0,null,0,null,"",""]
[32,null,null,null,null,null,null,null,null,null,null,null,null,null,0,null,null,null,0,null,0,null,"",""]
[33,null,null,null,null,null,null,null,null,null,null,null,null,null,0,null,null,null,0,null,0,null,"",""]
[34,null,null,null,null,null,null,null,null,null,null,null,null,null,0,null,null,null,0,null,0,null,"",""]
[35,null,null,null,null,null,null,null,null,null,null,null,null,null,0,null,null,null,0,null,0,null,"",""]
[36,null,null,null,null,null,null,null,null,null,null,null,null,null,0,null,null,null,0,null,0,null,"",""]
[37,null,null,null,null,null,null,null,null,null,null,null,null,null,0,null,null,null,0,null,0,null,"",""]
[38,null,null,null,null,null,null,null,null,null,null,null,null,null,0,null,null,null,0,null,0,null,"",""]
[{"$f":"+A144+1","v":39},null,null,null,null,null,null,null,null,null,null,null,null,null,{"$f":"J145*M145","v":0},null,null,null,{"$f":"O145*Q145","v":0},null,{"$f":"O145-S145","v":0},null,{"$f":"IF(ISBLANK(V145),\"\",IF(AND(V145=\"c\",M145>175),(M145-175)*J145,O145))","v":""},{"$f":"IF(ISBLANK(V145),\"\",S145)","v":""}]
[40,null,null,null,null,null,null,null,null,null,null,null,null,null,0,null,null,null,0,null,0,null,"",""]
[41,null,null,null,null,null,null,null,null,null,null,null,null,null,0,null,null,null,0,null,0,null,"",""]
[42,null,null,null,null,null,null,null,null,null,null,null,null,null,0,null,null,null,0,null,0,null,"",""]
[43,null,null,null,null,null,null,null,null,null,null,null,null,null,0,null,null,null,0,null,0,null,"",""]
[44,null,null,null,null,null,null,null,null,null,null,null,null,null,0,null,null,null,0,null,0,null,"",""]
[45,null,null,null,null,null,null,null,null,null,null,null,null,null,{"$f":"J151*M151","v":0},null,null,null,{"$f":"O151*Q151","v":0},null,{"$f":"O151-S151","v":0},null,"",""]
[46,null,null,null,null,null,null,null,null,null,null,null,null,null,{"$f":"J152*M152","v":0},null,null,null,{"$f":"O152*Q152","v":0},null,{"$f":"O152-S152","v":0},null,"",""]
[47,null,null,null,null,null,null,null,null,null,null,null,null,null,0,null,null,null,0,null,0,null,"",""]
[48,null,null,null,null,null,null,null,null,null,null,null,null,null,0,null,null,null,0,null,0,null,"",""]
[49,null,null,null,null,null,null,null,null,null,null,null,null,null,0,null,null,null,0,null,0,null,"",""]
[50,null,null,null,null,null,null,null,null,null,null,null,null,null,0,null,null,null,0,null,0,null,"",""]
[51,null,null,null,null,null,null,null,null,null,null,null,null,null,0,null,null,null,0,null,0,null,"",""]
[52,null,null,null,null,null,null,null,null,null,null,null,null,null,0,null,null,null,0,null,0,null,"",""]
[53,null,null,null,null,null,null,null,null,null,null,null,null,null,0,null,null,null,0,null,0,null,"",""]
[54,null,null,null,null,null,null,null,null,null,null,null,null,null,0,null,null,null,0,null,0,null,"",""]
[{"$f":"+A160+1","v":55},null,null,null,null,null,null,null,null,null,null,null,null,null,{"$f":"J161*M161","v":0},null,null,null,{"$f":"O161*Q161","v":0},null,{"$f":"O161-S161","v":0},null,"",""]
[56,null,null,null,null,null,null,null,null,null,null,null,null,null,0,null,null,null,0,null,0,null,"",""]
[57,null,null,null,null,null,null,null,null,null,null,null,null,null,0,null,null,null,0,null,0,null,"",""]
[58,null,null,null,null,null,null,null,null,null,null,null,null,null,0,null,null,null,0,null,0,null,"",""]
[59,null,null,null,null,null,null,null,null,null,null,null,null,null,0,null,null,null,0,null,0,null,"",""]
[60,null,null,null,null,null,null,null,null,null,null,null,null,null,0,null,null,null,0,null,0,null,"",""]
[61,null,null,null,null,null,null,null,null,null,null,null,null,null,{"$f":"J167*M167","v":0},null,null,null,{"$f":"O167*Q167","v":0},null,{"$f":"O167-S167","v":0},null,"",""]
[null,null,null,null,null,null,null,null,null,null,null,null,null,null,{"$f":"J168*M168","v":0},null,null,null,{"$f":"O168*Q168","v":0},null,{"$f":"O168-S168","v":0},null,""]
[{"$f":"+A167+1","v":62},null,null,null,null,null,null,null,null,null,null,null,null,null,{"$f":"J169*M169","v":0},null,null,null,{"$f":"O169*Q169","v":0},null,{"$f":"O169-S169","v":0},null,"",""]
[63,null,null,null,null,null,null,null,null,null,null,null,null,null,0,null,null,null,0,null,0,null,"",""]
[64,null,null,null,null,null,null,null,null,null,null,null,null,null,0,null,null,null,0,null,0,null,"",""]
[65,null,null,null,null,null,null,null,null,null,null,null,null,null,0,null,null,null,0,null,0,null,"",""]
[66,null,null,null,null,null,null,null,null,null,null,null,null,null,0,null,null,null,0,null,0,null,"",""]
[67,null,null,null,null,null,null,null,null,null,null,null,null,null,0,null,null,null,0,null,0,null,"",""]
[68,null,null,null,null,null,null,null,null,null,null,null,null,null,0,null,null,null,0,null,0,null,"",""]
[69,null,null,null,null,null,null,null,null,null,null,null,null,null,0,null,null,null,0,null,0,null,"",""]
[70,null,null,null,null,null,null,null,null,null,null,null,null,null,0,null,null,null,0,null,0,null,"",""]
[{"$f":"+A177+1","v":71},null,null,null,null,null,null,null,null,null,null,null,null,null,{"$f":"J178*M178","v":0},null,null,null,{"$f":"O178*Q178","v":0},null,{"$f":"O178-S178","v":0},null,"",""]
[72,null,null,null,null,null,null,null,null,null,null,null,null,null,0,null,null,null,0,null,0,null,"",""]
[73,null,null,null,null,null,null,null,null,null,null,null,null,null,0,null,null,null,0,null,0,null,"",""]
[74,null,null,null,null,null,null,null,null,null,null,null,null,null,0,null,null,null,0,null,0,null,"",""]
[75,null,null,null,null,null,null,null,null,null,null,null,null,null,0,null,null,null,0,null,0,null,"",""]
[76,null,null,null,null,null,null,null,null,null,null,null,null,null,0,null,null,null,0,null,0,null,"",""]
[77,null,null,null,null,null,null,null,null,null,null,null,null,null,0,null,null,null,0,null,0,null,"",""]
[78,null,null,null,null,null,null,null,null,null,null,null,null,null,0,null,null,null,0,null,0,null,"",""]
[79,null,null,null,null,null,null,null,null,null,null,null,null,null,0,null,null,null,0,null,0,null,"",""]
[80,null,null,null,null,null,null,null,null,null,null,null,null,null,{"$f":"J187*M187","v":0},null,null,null,{"$f":"O187*Q187","v":0},null,{"$f":"O187-S187","v":0},null,"",""]
[81,null,null,null,null,null,null,null,null,null,null,null,null,null,{"$f":"J188*M188","v":0},null,null,null,{"$f":"O188*Q188","v":0},null,{"$f":"O188-S188","v":0},null,"",""]
[82,null,null,null,null,null,null,null,null,null,null,null,null,null,0,null,null,null,0,null,0,null,"",""]
[83,null,null,null,null,null,null,null,null,null,null,null,null,null,0,null,null,null,0,null,0,null,"",""]
[84,null,null,null,null,null,null,null,null,null,null,null,null,null,0,null,null,null,0,null,0,null,"",""]
[85,null,null,null,null,null,null,null,null,null,null,null,null,null,0,null,null,null,0,null,0,null,"",""]
[86,null,null,null,null,null,null,null,null,null,null,null,null,null,0,null,null,null,0,null,0,null,"",""]
[{"$f":"+A193+1","v":87},null,null,null,null,null,null,null,null,null,null,null,null,null,{"$f":"J194*M194","v":0},null,null,null,{"$f":"O194*Q194","v":0},null,{"$f":"O194-S194","v":0},null,"",""]
[88,null,null,null,null,null,null,null,null,null,null,null,null,null,0,null,null,null,0,null,0,null,"",""]
[89,null,null,null,null,null,null,null,null,null,null,null,null,null,0,null,null,null,0,null,0,null,"",""]
[90,null,null,null,null,null,null,null,null,null,null,null,null,null,0,null,null,null,0,null,0,null,"",""]
[91,null,null,null,null,null,null,null,null,null,null,null,null,null,0,null,null,null,0,null,0,null,"",""]
[92,null,null,null,null,null,null,null,null,null,null,null,null,null,0,null,null,null,0,null,0,null,"",""]
[93,null,null,null,null,null,null,null,null,null,null,null,null,null,0,null,null,null,0,null,0,null,"",""]
[94,null,null,null,null,null,null,null,null,null,null,null,null,null,0,null,null,null,0,null,0,null,"",""]
[95,null,null,null,null,null,null,null,null,null,null,null,null,null,0,null,null,null,0,null,0,null,"",""]
[96,null,null,null,null,null,null,null,null,null,null,null,null,null,0,null,null,null,0,null,0,null,"",""]
[97,null,null,null,null,null,null,null,null,null,null,null,null,null,0,null,null,null,0,null,0,null,"",""]
[98,null,null,null,null,null,null,null,null,null,null,null,null,null,0,null,null,null,0,null,0,null,"",""]
[99,null,null,null,null,null,null,null,null,null,null,null,null,null,0,null,null,null,0,null,0,null,"",""]
[100,null,null,null,null,null,null,null,null,null,null,null,null,null,0,null,null,null,0,null,0,null,"",""]
[101,null,null,null,null,null,null,null,null,null,null,null,null,null,0,null,null,null,0,null,0,null,"",""]
[102,null,null,null,null,null,null,null,null,null,null,null,null,null,0,null,null,null,0,null,0,null,{"$f":"IF(ISBLANK(V209),\"\",IF(AND(V209=\"c\",M209>175),(M209-175)*J209,O209))","v":""},""]
[{"$f":"+A209+1","v":103},null,null,null,null,null,null,null,null,null,null,null,null,null,{"$f":"J210*M210","v":0},null,null,null,{"$f":"O210*Q210","v":0},null,{"$f":"O210-S210","v":0},null,"",{"$f":"IF(ISBLANK(V210),\"\",S210)","v":""}]
[104,null,null,null,null,null,null,null,null,null,null,null,null,null,{"$f":"J211*M211","v":0},null,null,null,{"$f":"O211*Q211","v":0},null,{"$f":"O211-S211","v":0},null,"",""]
[105,null,null,null,null,null,null,null,null,null,null,null,null,null,{"$f":"J212*M212","v":0},null,null,null,{"$f":"O212*Q212","v":0},null,{"$f":"O212-S212","v":0},null,"",""]
[106,null,null,null,null,null,null,null,null,null,null,null,null,null,0,null,null,null,0,null,0,null,"",""]
[107,null,null,null,null,null,null,null,null,null,null,null,null,null,0,null,null,null,0,null,0,null,"",""]
[108,null,null,null,null,null,null,null,null,null,null,null,null,null,0,null,null,null,0,null,0,null,"",""]
[109,null,null,null,null,null,null,null,null,null,null,null,null,null,0,null,null,null,0,null,0,null,"",""]
[110,null,null,null,null,null,null,null,null,null,null,null,null,null,{"$f":"J217*M217","v":0},null,null,null,{"$f":"O217*Q217","v":0},null,{"$f":"O217-S217","v":0},null,"",""]
[111,null,null,null,null,null,null,null,null,null,null,null,null,null,{"$f":"J218*M218","v":0},null,null,null,{"$f":"O218*Q218","v":0},null,{"$f":"O218-S218","v":0},null,"",""]
[112,null,null,null,null,null,null,null,null,null,null,null,null,null,0,null,null,null,0,null,0,null,"",""]
[113,null,null,null,null,null,null,null,null,null,null,null,null,null,0,null,null,null,0,null,0,null,"",""]
[114,null,null,null,null,null,null,null,null,null,null,null,null,null,0,null,null,null,0,null,0,null,"",""]
[115,null,null,null,null,null,null,null,null,null,null,null,null,null,0,null,null,null,0,null,0,null,"",""]
[116,null,null,null,null,null,null,null,null,null,null,null,null,null,0,null,null,null,0,null,0,null,"",""]
[117,null,null,null,null,null,null,null,null,null,null,null,null,null,0,null,null,null,0,null,0,null,"",""]
[118,null,null,null,null,null,null,null,null,null,null,null,null,null,0,null,null,null,0,null,0,null,"",""]
[{"$f":"+A225+1","v":119},null,null,null,null,null,null,null,null,null,null,null,null,null,{"$f":"J226*M226","v":0},null,null,null,{"$f":"O226*Q226","v":0},null,{"$f":"O226-S226","v":0},null,"",""]
[120,null,null,null,null,null,null,null,null,null,null,null,null,null,0,null,null,null,0,null,0,null,"",""]
[121,null,null,null,null,null,null,null,null,null,null,null,null,null,0,null,null,null,0,null,0,null,"",""]
[122,null,null,null,null,null,null,null,null,null,null,null,null,null,0,null,null,null,0,null,0,null,"",""]
[123,null,null,null,null,null,null,null,null,null,null,null,null,null,0,null,null,null,0,null,0,null,"",""]
[124,null,null,null,null,null,null,null,null,null,null,null,null,null,0,null,null,null,0,null,0,null,"",""]
[125,null,null,null,null,null,null,null,null,null,null,null,null,null,0,null,null,null,0,null,0,null,"",""]
[126,null,null,null,null,null,null,null,null,null,null,null,null,null,0,null,null,null,0,null,0,null,"",""]
[127,null,null,null,null,null,null,null,null,null,null,null,null,null,0,null,null,null,0,null,0,null,"",""]
[128,null,null,null,null,null,null,null,null,null,null,null,null,null,0,null,null,null,0,null,0,null,"",""]
[129,null,null,null,null,null,null,null,null,null,null,null,null,null,0,null,null,null,0,null,0,null,"",""]
[130,null,null,null,null,null,null,null,null,null,null,null,null,null,0,null,null,null,0,null,0,null,"",""]
[131,null,null,null,null,null,null,null,null,null,null,null,null,null,0,null,null,null,0,null,0,null,"",""]
[132,null,null,null,null,null,null,null,null,null,null,null,null,null,0,null,null,null,0,null,0,null,"",""]
[133,null,null,null,null,null,null,null,null,null,null,null,null,null,0,null,null,null,0,null,0,null,"",""]
[134,null,null,null,null,null,null,null,null,null,null,null,null,null,0,null,null,null,0,null,0,null,"",""]
[{"$f":"+A241+1","v":135},null,null,null,null,null,null,null,null,null,null,null,null,null,{"$f":"J242*M242","v":0},null,null,null,{"$f":"O242*Q242","v":0},null,{"$f":"O242-S242","v":0},null,"",""]
[136,null,null,null,null,null,null,null,null,null,null,null,null,null,0,null,null,null,0,null,0,null,"",""]
[137,null,null,null,null,null,null,null,null,null,null,null,null,null,0,null,null,null,0,null,0,null,"",""]
[138,null,null,null,null,null,null,null,null,null,null,null,null,null,{"$f":"J245*M245","v":0},null,null,null,{"$f":"O245*Q245","v":0},null,{"$f":"O245-S245","v":0},null,"",""]
[139,null,null,null,null,null,null,null,null,null,null,null,null,null,{"$f":"J246*M246","v":0},null,null,null,{"$f":"O246*Q246","v":0},null,{"$f":"O246-S246","v":0},null,"",""]
[140,null,null,null,null,null,null,null,null,null,null,null,null,null,0,null,null,null,0,null,0,null,"",""]
[141,null,null,null,null,null,null,null,null,null,null,null,null,null,0,null,null,null,0,null,0,null,"",""]
[142,null,null,null,null,null,null,null,null,null,null,null,null,null,0,null,null,null,0,null,0,null,"",""]
[143,null,null,null,null,null,null,null,null,null,null,null,null,null,0,null,null,null,0,null,0,null,"",""]
[144,null,null,null,null,null,null,null,null,null,null,null,null,null,0,null,null,null,0,null,0,null,"",""]
[145,null,null,null,null,null,null,null,null,null,null,null,null,null,0,null,null,null,0,null,0,null,"",""]
[146,null,null,null,null,null,null,null,null,null,null,null,null,null,0,null,null,null,0,null,0,null,"",""]
[147,null,null,null,null,null,null,null,null,null,null,null,null,null,0,null,null,null,0,null,0,null,"",""]
[148,null,null,null,null,null,null,null,null,null,null,null,null,null,0,null,null,null,0,null,0,null,"",""]
[149,null,null,null,null,null,null,null,null,null,null,null,null,null,0,null,null,null,0,null,0,null,"",""]
[150,null,null,null,null,null,null,null,null,null,null,null,null,null,0,null,null,null,0,null,0,null,"",""]
[{"$f":"+A257+1","v":151},null,null,null,null,null,null,null,null,null,null,null,null,null,{"$f":"J258*M258","v":0},null,null,null,{"$f":"O258*Q258","v":0},null,{"$f":"O258-S258","v":0},null,"",""]
[152,null,null,null,null,null,null,null,null,null,null,null,null,null,0,null,null,null,0,null,0,null,"",""]
[153,null,null,null,null,null,null,null,null,null,null,null,null,null,0,null,null,null,0,null,0,null,"",""]
[154,null,null,null,null,null,null,null,null,null,null,null,null,null,0,null,null,null,0,null,0,null,"",""]
[155,null,null,null,null,null,null,null,null,null,null,null,null,null,0,null,null,null,0,null,0,null,"",""]
[156,null,null,null,null,null,null,null,null,null,null,null,null,null,0,null,null,null,0,null,0,null,"",""]
[157,null,null,null,null,null,null,null,null,null,null,null,null,null,0,null,null,null,0,null,0,null,"",""]
[158,null,null,null,null,null,null,null,null,null,null,null,null,null,0,null,null,null,0,null,0,null,"",""]
[159,null,null,null,null,null,null,null,null,null,null,null,null,null,0,null,null,null,0,null,0,null,"",""]
[160,null,null,null,null,null,null,null,null,null,null,null,null,null,0,null,null,null,0,null,0,null,"",""]
[161,null,null,null,null,null,null,null,null,null,null,null,null,null,0,null,null,null,0,null,0,null,"",""]
[162,null,null,null,null,null,null,null,null,null,null,null,null,null,0,null,null,null,0,null,0,null,"",""]
[163,null,null,null,null,null,null,null,null,null,null,null,null,null,{"$f":"J270*M270","v":0},null,null,null,{"$f":"O270*Q270","v":0},null,{"$f":"O270-S270","v":0},null,"",""]
[164,null,null,null,null,null,null,null,null,null,null,null,null,null,{"$f":"J271*M271","v":0},null,null,null,{"$f":"O271*Q271","v":0},null,{"$f":"O271-S271","v":0},null,"",""]
[165,null,null,null,null,null,null,null,null,null,null,null,null,null,0,null,null,null,0,null,0,null,"",""]
[166,null,null,null,null,null,null,null,null,null,null,null,null,null,0,null,null,null,0,null,0,null,{"$f":"IF(ISBLANK(V273),\"\",IF(AND(V273=\"c\",M273>175),(M273-175)*J273,O273))","v":""},""]
[{"$f":"+A273+1","v":167},null,null,null,null,null,null,null,null,null,null,null,null,null,{"$f":"J274*M274","v":0},null,null,null,{"$f":"O274*Q274","v":0},null,{"$f":"O274-S274","v":0},null,"",{"$f":"IF(ISBLANK(V274),\"\",S274)","v":""}]
[168,null,null,null,null,null,null,null,null,null,null,null,null,null,0,null,null,null,0,null,0,null,"",""]
[169,null,null,null,null,null,null,null,null,null,null,null,null,null,0,null,null,null,0,null,0,null,"",""]
[170,null,null,null,null,null,null,null,null,null,null,null,null,null,0,null,null,null,0,null,0,null,"",""]
[171,null,null,null,null,null,null,null,null,null,null,null,null,null,0,null,null,null,0,null,0,null,"",""]
[172,null,null,null,null,null,null,null,null,null,null,null,null,null,0,null,null,null,0,null,0,null,"",""]
[173,null,null,null,null,null,null,null,null,null,null,null,null,null,0,null,null,null,0,null,0,null,"",""]
[174,null,null,null,null,null,null,null,null,null,null,null,null,null,0,null,null,null,0,null,0,null,"",""]
[175,null,null,null,null,null,null,null,null,null,null,null,null,null,0,null,null,null,0,null,0,null,"",""]
[176,null,null,null,null,null,null,null,null,null,null,null,null,null,0,null,null,null,0,null,0,null,"",""]
[177,null,null,null,null,null,null,null,null,null,null,null,null,null,0,null,null,null,0,null,0,null,"",""]
[178,null,null,null,null,null,null,null,null,null,null,null,null,null,0,null,null,null,0,null,0,null,"",""]
[179,null,null,null,null,null,null,null,null,null,null,null,null,null,0,null,null,null,0,null,0,null,"",""]
[180,null,null,null,null,null,null,null,null,null,null,null,null,null,0,null,null,null,0,null,0,null,"",""]
[181,null,null,null,null,null,null,null,null,null,null,null,null,null,0,null,null,null,0,null,0,null,"",""]
[182,null,null,null,null,null,null,null,null,null,null,null,null,null,0,null,null,null,0,null,0,null,"",""]
[{"$f":"+A289+1","v":183},null,null,null,null,null,null,null,null,null,null,null,null,null,{"$f":"J290*M290","v":0},null,null,null,{"$f":"O290*Q290","v":0},null,{"$f":"O290-S290","v":0},null,"",""]
[184,null,null,null,null,null,null,null,null,null,null,null,null,null,0,null,null,null,0,null,0,null,"",""]
[185,null,null,null,null,null,null,null,null,null,null,null,null,null,0,null,null,null,0,null,0,null,"",""]
[186,null,null,null,null,null,null,null,null,null,null,null,null,null,0,null,null,null,0,null,0,null,"",""]
[187,null,null,null,null,null,null,null,null,null,null,null,null,null,0,null,null,null,0,null,0,null,"",""]
[188,null,null,null,null,null,null,null,null,null,null,null,null,null,0,null,null,null,0,null,0,null,"",""]
[189,null,null,null,null,null,null,null,null,null,null,null,null,null,0,null,null,null,0,null,0,null,"",""]
[190,null,null,null,null,null,null,null,null,null,null,null,null,null,0,null,null,null,0,null,0,null,"",""]
[191,null,null,null,null,null,null,null,null,null,null,null,null,null,{"$f":"J298*M298","v":0},null,null,null,{"$f":"O298*Q298","v":0},null,{"$f":"O298-S298","v":0},null,"",""]
[192,null,null,null,null,null,null,null,null,null,null,null,null,null,{"$f":"J299*M299","v":0},null,null,null,{"$f":"O299*Q299","v":0},null,{"$f":"O299-S299","v":0},null,"",""]
[193,null,null,null,null,null,null,null,null,null,null,null,null,null,0,null,null,null,0,null,0,null,"",""]
[194,null,null,null,null,null,null,null,null,null,null,null,null,null,{"$f":"J301*M301","v":0},null,null,null,{"$f":"O301*Q301","v":0},null,{"$f":"O301-S301","v":0},null,"",""]
[{"$f":"+A301+1","v":195},null,null,null,null,null,null,null,null,null,null,null,null,null,0,null,null,null,0,null,0,null,"",""]
[196,null,null,null,null,null,null,null,null,null,null,null,null,null,0,null,null,null,0,null,0,null,"",""]
[197,null,null,null,null,null,null,null,null,null,null,null,null,null,0,null,null,null,0,null,0,null,"",""]
[198,null,null,null,null,null,null,null,null,null,null,null,null,null,0,null,null,null,0,null,0,null,"",""]
[199,null,null,null,null,null,null,null,null,null,null,null,null,null,0,null,null,null,0,null,0,null,"",""]
[200,null,null,null,null,null,null,null,null,null,null,null,null,null,0,null,null,null,0,null,0,null,"",""]
[201,null,null,null,null,null,null,null,null,null,null,null,null,null,0,null,null,null,0,null,0,null,"",""]
[202,null,null,null,null,null,null,null,null,null,null,null,null,null,0,null,null,null,0,null,0,null,"",""]
[203,null,null,null,null,null,null,null,null,null,null,null,null,null,0,null,null,null,0,null,0,null,"",""]
[204,null,null,null,null,null,null,null,null,null,null,null,null,null,0,null,null,null,0,null,0,null,"",""]
[205,null,null,null,null,null,null,null,null,null,null,null,null,null,0,null,null,null,0,null,0,null,"",""]
[206,null,null,null,null,null,null,null,null,null,null,null,null,null,0,null,null,null,0,null,0,null,"",""]
[207,null,null,null,null,null,null,null,null,null,null,null,null,null,0,null,null,null,0,null,0,null,"",""]
[208,null,null,null,null,null,null,null,null,null,null,null,null,null,0,null,null,null,0,null,0,null,"",""]
[{"$f":"+A315+1","v":209},null,null,null,null,null,null,null,null,null,null,null,null,null,{"$f":"J316*M316","v":0},null,null,null,{"$f":"O316*Q316","v":0},null,{"$f":"O316-S316","v":0},null,"",""]
[210,null,null,null,null,null,null,null,null,null,null,null,null,null,0,null,null,null,0,null,0,null,"",""]
[211,null,null,null,null,null,null,null,null,null,null,null,null,null,0,null,null,null,0,null,0,null,"",""]
[212,null,null,null,null,null,null,null,null,null,null,null,null,null,0,null,null,null,0,null,0,null,"",""]
[213,null,null,null,null,null,null,null,null,null,null,null,null,null,0,null,null,null,0,null,0,null,"",""]
[214,null,null,null,null,null,null,null,null,null,null,null,null,null,0,null,null,null,0,null,0,null,"",""]
[215,null,null,null,null,null,null,null,null,null,null,null,null,null,0,null,null,null,0,null,0,null,"",""]
[216,null,null,null,null,null,null,null,null,null,null,null,null,null,0,null,null,null,0,null,0,null,"",""]
[217,null,null,null,null,null,null,null,null,null,null,null,null,null,0,null,null,null,0,null,0,null,"",""]
[218,null,null,null,null,null,null,null,null,null,null,null,null,null,0,null,null,null,0,null,0,null,"",""]
[219,null,null,null,null,null,null,null,null,null,null,null,null,null,0,null,null,null,0,null,0,null,"",""]
[220,null,null,null,null,null,null,null,null,null,null,null,null,null,0,null,null,null,0,null,0,null,"",""]
[221,null,null,null,null,null,null,null,null,null,null,null,null,null,0,null,null,null,0,null,0,null,"",""]
[222,null,null,null,null,null,null,null,null,null,null,null,null,null,0,null,null,null,0,null,0,null,"",""]
[223,null,null,null,null,null,null,null,null,null,null,null,null,null,0,null,null,null,0,null,0,null,"",""]
[224,null,null,null,null,null,null,null,null,null,null,null,null,null,0,null,null,null,0,null,0,null,"",""]
[{"$f":"+A331+1","v":225},null,null,null,null,null,null,null,null,null,null,null,null,null,{"$f":"J332*M332","v":0},null,null,null,{"$f":"O332*Q332","v":0},null,{"$f":"O332-S332","v":0},null,"",{"$f":"IF(ISBLANK(V332),\"\",S332)","v":""}]
[226,null,null,null,null,null,null,null,null,null,null,null,null,null,0,null,null,null,0,null,0,null,"",""]
[227,null,null,null,null,null,null,null,null,null,null,null,null,null,0,null,null,null,0,null,0,null,"",""]
[228,null,null,null,null,null,null,null,null,null,null,null,null,null,0,null,null,null,0,null,0,null,"",""]
[229,null,null,null,null,null,null,null,null,null,null,null,null,null,0,null,null,null,0,null,0,null,"",""]
[230,null,null,null,null,null,null,null,null,null,null,null,null,null,0,null,null,null,0,null,0,null,{"$f":"IF(ISBLANK(V337),\"\",IF(AND(V337=\"c\",M337>175),(M337-175)*J337,O337))","v":""},""]
[231,null,null,null,null,null,null,null,null,null,null,null,null,null,0,null,null,null,0,null,0,null,"",""]
[232,null,null,null,null,null,null,null,null,null,null,null,null,null,0,null,null,null,0,null,0,null,"",""]
[233,null,null,null,null,null,null,null,null,null,null,null,null,null,0,null,null,null,0,null,0,null,"",""]
[234,null,null,null,null,null,null,null,null,null,null,null,null,null,0,null,null,null,0,null,0,null,"",""]
[235,null,null,null,null,null,null,null,null,null,null,null,null,null,0,null,null,null,0,null,0,null,"",""]
[236,null,null,null,null,null,null,null,null,null,null,null,null,null,0,null,null,null,0,null,0,null,"",""]
[237,null,null,null,null,null,null,null,null,null,null,null,null,null,0,null,null,null,0,null,0,null,"",""]
[238,null,null,null,null,null,null,null,null,null,null,null,null,null,0,null,null,null,0,null,0,null,"",""]
[239,null,null,null,null,null,null,null,null,null,null,null,null,null,0,null,null,null,0,null,0,null,"",""]
[240,null,null,null,null,null,null,null,null,null,null,null,null,null,0,null,null,null,0,null,0,null,"",""]
[{"$f":"+A347+1","v":241},null,null,null,null,null,null,null,null,null,null,null,null,null,{"$f":"J348*M348","v":0},null,null,null,{"$f":"O348*Q348","v":0},null,{"$f":"O348-S348","v":0},null,"",""]
[242,null,null,null,null,null,null,null,null,null,null,null,null,null,0,null,null,null,0,null,0,null,"",""]
[243,null,null,null,null,null,null,null,null,null,null,null,null,null,0,null,null,null,0,null,0,null,"",""]
[244,null,null,null,null,null,null,null,null,null,null,null,null,null,0,null,null,null,0,null,0,null,"",""]
[245,null,null,null,null,null,null,null,null,null,null,null,null,null,0,null,null,null,0,null,0,null,"",""]
[246,null,null,null,null,null,null,null,null,null,null,null,null,null,0,null,null,null,0,null,0,null,"",""]
[247,null,null,null,null,null,null,null,null,null,null,null,null,null,0,null,null,null,0,null,0,null,"",""]
[248,null,null,null,null,null,null,null,null,null,null,null,null,null,0,null,null,null,0,null,0,null,"",""]
[249,null,null,null,null,null,null,null,null,null,null,null,null,null,0,null,null,null,0,null,0,null,"",""]
[250,null,null,null,null,null,null,null,null,null,null,null,null,null,0,null,null,null,0,null,0,null,"",""]
[251,null,null,null,null,null,null,null,null,null,null,null,null,null,0,null,null,null,0,null,0,null,"",""]
[252,null,null,null,null,null,null,null,null,null,null,null,null,null,0,null,null,null,0,null,0,null,"",""]
[253,null,null,null,null,null,null,null,null,null,null,null,null,null,0,null,null,null,0,null,0,null,"",""]
[254,null,null,null,null,null,null,null,null,null,null,null,null,null,0,null,null,null,0,null,0,null,"",""]
[255,null,null,null,null,null,null,null,null,null,null,null,null,null,0,null,null,null,0,null,0,null,"",""]
[256,null,null,null,null,null,null,null,null,null,null,null,null,null,0,null,null,null,0,null,0,null,"",""]
[{"$f":"+A363+1","v":257},null,null,null,null,null,null,null,null,null,null,null,null,null,{"$f":"J364*M364","v":0},null,null,null,{"$f":"O364*Q364","v":0},null,{"$f":"O364-S364","v":0},null,"",""]
[258,null,null,null,null,null,null,null,null,null,null,null,null,null,0,null,null,null,0,null,0,null,"",""]
[259,null,null,null,null,null,null,null,null,null,null,null,null,null,0,null,null,null,0,null,0,null,"",""]
[260,null,null,null,null,null,null,null,null,null,null,null,null,null,0,null,null,null,0,null,0,null,"",""]
[261,null,null,null,null,null,null,null,null,null,null,null,null,null,0,null,null,null,0,null,0,null,"",""]
[262,null,null,null,null,null,null,null,null,null,null,null,null,null,0,null,null,null,0,null,0,null,"",""]
[263,null,null,null,null,null,null,null,null,null,null,null,null,null,0,null,null,null,0,null,0,null,"",""]
[264,null,null,null,null,null,null,null,null,null,null,null,null,null,0,null,null,null,0,null,0,null,"",""]
[265,null,null,null,null,null,null,null,null,null,null,null,null,null,0,null,null,null,0,null,0,null,"",""]
[266,null,null,null,null,null,null,null,null,null,null,null,null,null,0,null,null,null,0,null,0,null,"",""]
[267,null,null,null,null,null,null,null,null,null,null,null,null,null,0,null,null,null,0,null,0,null,"",""]
[268,null,null,null,null,null,null,null,null,null,null,null,null,null,0,null,null,null,0,null,0,null,"",""]
[269,null,null,null,null,null,null,null,null,null,null,null,null,null,0,null,null,null,0,null,0,null,"",""]
[270,null,null,null,null,null,null,null,null,null,null,null,null,null,0,null,null,null,0,null,0,null,"",""]
[271,null,null,null,null,null,null,null,null,null,null,null,null,null,0,null,null,null,0,null,0,null,"",""]
[272,null,null,null,null,null,null,null,null,null,null,null,null,null,0,null,null,null,0,null,0,null,"",""]
[{"$f":"+A379+1","v":273},null,null,null,null,null,null,null,null,null,null,null,null,null,{"$f":"J380*M380","v":0},null,null,null,{"$f":"O380*Q380","v":0},null,{"$f":"O380-S380","v":0},null,"",""]
[274,null,null,null,null,null,null,null,null,null,null,null,null,null,0,null,null,null,0,null,0,null,"",""]
[275,null,null,null,null,null,null,null,null,null,null,null,null,null,0,null,null,null,0,null,0,null,"",""]
[276,null,null,null,null,null,null,null,null,null,null,null,null,null,0,null,null,null,0,null,0,null,"",""]
[277,null,null,null,null,null,null,null,null,null,null,null,null,null,0,null,null,null,0,null,0,null,"",""]
[278,null,null,null,null,null,null,null,null,null,null,null,null,null,0,null,null,null,0,null,0,null,"",""]
[279,null,null,null,null,null,null,null,null,null,null,null,null,null,0,null,null,null,0,null,0,null,"",""]
[280,null,null,null,null,null,null,null,null,null,null,null,null,null,0,null,null,null,0,null,0,null,"",""]
[281,null,null,null,null,null,null,null,null,null,null,null,null,null,0,null,null,null,0,null,0,null,"",""]
[282,null,null,null,null,null,null,null,null,null,null,null,null,null,0,null,null,null,0,null,0,null,"",""]
[283,null,null,null,null,null,null,null,null,null,null,null,null,null,0,null,null,null,0,null,0,null,"",""]
[284,null,null,null,null,null,null,null,null,null,null,null,null,null,0,null,null,null,0,null,0,null,"",""]
[285,null,null,null,null,null,null,null,null,null,null,null,null,null,0,null,null,null,0,null,0,null,"",""]
[286,null,null,null,null,null,null,null,null,null,null,null,null,null,0,null,null,null,0,null,0,null,"",""]
[287,null,null,null,null,null,null,null,null,null,null,null,null,null,0,null,null,null,0,null,0,null,"",""]
[288,null,null,null,null,null,null,null,null,null,null,null,null,null,0,null,null,null,0,null,0,null,"",""]
[{"$f":"+A395+1","v":289},null,null,null,null,null,null,null,null,null,null,null,null,null,{"$f":"J396*M396","v":0},null,null,null,{"$f":"O396*Q396","v":0},null,{"$f":"O396-S396","v":0},null,"",{"$f":"IF(ISBLANK(V396),\"\",S396)","v":""}]
[290,null,null,null,null,null,null,null,null,null,null,null,null,null,0,null,null,null,0,null,0,null,"",""]
[291,null,null,null,null,null,null,null,null,null,null,null,null,null,0,null,null,null,0,null,0,null,"",""]
[292,null,null,null,null,null,null,null,null,null,null,null,null,null,0,null,null,null,0,null,0,null,"",""]
[293,null,null,null,null,null,null,null,null,null,null,null,null,null,0,null,null,null,0,null,0,null,"",""]
[294,null,null,null,null,null,null,null,null,null,null,null,null,null,0,null,null,null,0,null,0,null,{"$f":"IF(ISBLANK(V401),\"\",IF(AND(V401=\"c\",M401>175),(M401-175)*J401,O401))","v":""},""]
[295,null,null,null,null,null,null,null,null,null,null,null,null,null,0,null,null,null,0,null,0,null,"",""]
[296,null,null,null,null,null,null,null,null,null,null,null,null,null,0,null,null,null,0,null,0,null,"",""]
[297,null,null,null,null,null,null,null,null,null,null,null,null,null,0,null,null,null,0,null,0,null,"",""]
[298,null,null,null,null,null,null,null,null,null,null,null,null,null,0,null,null,null,0,null,0,null,"",""]
[299,null,null,null,null,null,null,null,null,null,null,null,null,null,0,null,null,null,0,null,0,null,"",""]
[300,null,null,null,null,null,null,null,null,null,null,null,null,null,0,null,null,null,0,null,0,null,"",""]
[301,null,null,null,null,null,null,null,null,null,null,null,null,null,0,null,null,null,0,null,0,null,"",""]
[302,null,null,null,null,null,null,null,null,null,null,null,null,null,0,null,null,null,0,null,0,null,"",""]
[303,null,null,null,null,null,null,null,null,null,null,null,null,null,0,null,null,null,0,null,0,null,"",""]
[304,null,null,null,null,null,null,null,null,null,null,null,null,null,0,null,null,null,0,null,0,null,"",""]
[{"$f":"+A411+1","v":305},null,null,null,null,null,null,null,null,null,null,null,null,null,{"$f":"J412*M412","v":0},null,null,null,{"$f":"O412*Q412","v":0},null,{"$f":"O412-S412","v":0},null,"",""]
[306,null,null,null,null,null,null,null,null,null,null,null,null,null,0,null,null,null,0,null,0,null,"",""]
[307,null,null,null,null,null,null,null,null,null,null,null,null,null,0,null,null,null,0,null,0,null,"",""]
[308,null,null,null,null,null,null,null,null,null,null,null,null,null,0,null,null,null,0,null,0,null,"",""]
[309,null,null,null,null,null,null,null,null,null,null,null,null,null,0,null,null,null,0,null,0,null,"",""]
[310,null,null,null,null,null,null,null,null,null,null,null,null,null,0,null,null,null,0,null,0,null,"",""]
[311,null,null,null,null,null,null,null,null,null,null,null,null,null,0,null,null,null,0,null,0,null,"",""]
[312,null,null,null,null,null,null,null,null,null,null,null,null,null,0,null,null,null,0,null,0,null,"",""]
[313,null,null,null,null,null,null,null,null,null,null,null,null,null,0,null,null,null,0,null,0,null,"",""]
[314,null,null,null,null,null,null,null,null,null,null,null,null,null,0,null,null,null,0,null,0,null,"",""]
[315,null,null,null,null,null,null,null,null,null,null,null,null,null,0,null,null,null,0,null,0,null,"",""]
[316,null,null,null,null,null,null,null,null,null,null,null,null,null,0,null,null,null,0,null,0,null,"",""]
[317,null,null,null,null,null,null,null,null,null,null,null,null,null,0,null,null,null,0,null,0,null,"",""]
[318,null,null,null,null,null,null,null,null,null,null,null,null,null,0,null,null,null,0,null,0,null,"",""]
[319,null,null,null,null,null,null,null,null,null,null,null,null,null,0,null,null,null,0,null,0,null,"",""]
[320,null,null,null,null,null,null,null,null,null,null,null,null,null,0,null,null,null,0,null,0,null,"",""]
[{"$f":"+A427+1","v":321},null,null,null,null,null,null,null,null,null,null,null,null,null,{"$f":"J428*M428","v":0},null,null,null,{"$f":"O428*Q428","v":0},null,{"$f":"O428-S428","v":0},null,"",""]
[322,null,null,null,null,null,null,null,null,null,null,null,null,null,0,null,null,null,0,null,0,null,"",""]
[323,null,null,null,null,null,null,null,null,null,null,null,null,null,0,null,null,null,0,null,0,null,"",""]
[324,null,null,null,null,null,null,null,null,null,null,null,null,null,0,null,null,null,0,null,0,null,"",""]
[325,null,null,null,null,null,null,null,null,null,null,null,null,null,0,null,null,null,0,null,0,null,"",""]
[326,null,null,null,null,null,null,null,null,null,null,null,null,null,0,null,null,null,0,null,0,null,"",""]
[327,null,null,null,null,null,null,null,null,null,null,null,null,null,0,null,null,null,0,null,0,null,"",""]
[328,null,null,null,null,null,null,null,null,null,null,null,null,null,0,null,null,null,0,null,0,null,"",""]
[329,null,null,null,null,null,null,null,null,null,null,null,null,null,0,null,null,null,0,null,0,null,"",""]
[330,null,null,null,null,null,null,null,null,null,null,null,null,null,0,null,null,null,0,null,0,null,"",""]
[331,null,null,null,null,null,null,null,null,null,null,null,null,null,0,null,null,null,0,null,0,null,"",""]
[332,null,null,null,null,null,null,null,null,null,null,null,null,null,0,null,null,null,0,null,0,null,"",""]
[333,null,null,null,null,null,null,null,null,null,null,null,null,null,0,null,null,null,0,null,0,null,"",""]
[334,null,null,null,null,null,null,null,null,null,null,null,null,null,0,null,null,null,0,null,0,null,"",""]
[335,null,null,null,null,null,null,null,null,null,null,null,null,null,0,null,null,null,0,null,0,null,"",""]
[336,null,null,null,null,null,null,null,null,null,null,null,null,null,0,null,null,null,0,null,0,null,"",""]
[{"$f":"+A443+1","v":337},null,null,null,null,null,null,null,null,null,null,null,null,null,{"$f":"J444*M444","v":0},null,null,null,{"$f":"O444*Q444","v":0},null,{"$f":"O444-S444","v":0},null,"",""]
[338,null,null,null,null,null,null,null,null,null,null,null,null,null,0,null,null,null,0,null,0,null,"",""]
[339,null,null,null,null,null,null,null,null,null,null,null,null,null,0,null,null,null,0,null,0,null,"",""]
[340,null,null,null,null,null,null,null,null,null,null,null,null,null,0,null,null,null,0,null,0,null,"",""]
[341,null,null,null,null,null,null,null,null,null,null,null,null,null,0,null,null,null,0,null,0,null,"",""]
[342,null,null,null,null,null,null,null,null,null,null,null,null,null,0,null,null,null,0,null,0,null,"",""]
[343,null,null,null,null,null,null,null,null,null,null,null,null,null,0,null,null,null,0,null,0,null,"",""]
[344,null,null,null,null,null,null,null,null,null,null,null,null,null,0,null,null,null,0,null,0,null,"",""]
[345,null,null,null,null,null,null,null,null,null,null,null,null,null,0,null,null,null,0,null,0,null,"",""]
[346,null,null,null,null,null,null,null,null,null,null,null,null,null,0,null,null,null,0,null,0,null,"",""]
[347,null,null,null,null,null,null,null,null,null,null,null,null,null,0,null,null,null,0,null,0,null,"",""]
[348,null,null,null,null,null,null,null,null,null,null,null,null,null,0,null,null,null,0,null,0,null,"",""]
[349,null,null,null,null,null,null,null,null,null,null,null,null,null,0,null,null,null,0,null,0,null,"",""]
[350,null,null,null,null,null,null,null,null,null,null,null,null,null,0,null,null,null,0,null,0,null,"",""]
[351,null,null,null,null,null,null,null,null,null,null,null,null,null,0,null,null,null,0,null,0,null,"",""]
[352,null,null,null,null,null,null,null,null,null,null,null,null,null,0,null,null,null,0,null,0,null,"",""]
[{"$f":"+A459+1","v":353},null,null,null,null,null,null,null,null,null,null,null,null,null,{"$f":"J460*M460","v":0},null,null,null,{"$f":"O460*Q460","v":0},null,{"$f":"O460-S460","v":0},null,"",{"$f":"IF(ISBLANK(V460),\"\",S460)","v":""}]
[354,null,null,null,null,null,null,null,null,null,null,null,null,null,0,null,null,null,0,null,0,null,"",""]
[355,null,null,null,null,null,null,null,null,null,null,null,null,null,0,null,null,null,0,null,0,null,"",""]
[356,null,null,null,null,null,null,null,null,null,null,null,null,null,0,null,null,null,0,null,0,null,"",""]
[357,null,null,null,null,null,null,null,null,null,null,null,null,null,0,null,null,null,0,null,0,null,"",""]
[358,null,null,null,null,null,null,null,null,null,null,null,null,null,0,null,null,null,0,null,0,null,{"$f":"IF(ISBLANK(V465),\"\",IF(AND(V465=\"c\",M465>175),(M465-175)*J465,O465))","v":""},""]
[359,null,null,null,null,null,null,null,null,null,null,null,null,null,0,null,null,null,0,null,0,null,"",""]
[360,null,null,null,null,null,null,null,null,null,null,null,null,null,0,null,null,null,0,null,0,null,"",""]
[361,null,null,null,null,null,null,null,null,null,null,null,null,null,0,null,null,null,0,null,0,null,"",""]
[362,null,null,null,null,null,null,null,null,null,null,null,null,null,0,null,null,null,0,null,0,null,"",""]
[363,null,null,null,null,null,null,null,null,null,null,null,null,null,0,null,null,null,0,null,0,null,"",""]
[364,null,null,null,null,null,null,null,null,null,null,null,null,null,0,null,null,null,0,null,0,null,"",""]
[365,null,null,null,null,null,null,null,null,null,null,null,null,null,0,null,null,null,0,null,0,null,"",""]
[366,null,null,null,null,null,null,null,null,null,null,null,null,null,0,null,null,null,0,null,0,null,"",""]
[367,null,null,null,null,null,null,null,null,null,null,null,null,null,0,null,null,null,0,null,0,null,"",""]
[368,null,null,null,null,null,null,null,null,null,null,null,null,null,0,null,null,null,0,null,0,null,"",""]
[{"$f":"+A475+1","v":369},null,null,null,null,null,null,null,null,null,null,null,null,null,{"$f":"J476*M476","v":0},null,null,null,{"$f":"O476*Q476","v":0},null,{"$f":"O476-S476","v":0},null,"",""]
[370,null,null,null,null,null,null,null,null,null,null,null,null,null,0,null,null,null,0,null,0,null,"",""]
[371,null,null,null,null,null,null,null,null,null,null,null,null,null,0,null,null,null,0,null,0,null,"",""]
[372,null,null,null,null,null,null,null,null,null,null,null,null,null,0,null,null,null,0,null,0,null,"",""]
[373,null,null,null,null,null,null,null,null,null,null,null,null,null,0,null,null,null,0,null,0,null,"",""]
[374,null,null,null,null,null,null,null,null,null,null,null,null,null,0,null,null,null,0,null,0,null,"",""]
[375,null,null,null,null,null,null,null,null,null,null,null,null,null,0,null,null,null,0,null,0,null,"",""]
[376,null,null,null,null,null,null,null,null,null,null,null,null,null,0,null,null,null,0,null,0,null,"",""]
[377,null,null,null,null,null,null,null,null,null,null,null,null,null,0,null,null,null,0,null,0,null,"",""]
[378,null,null,null,null,null,null,null,null,null,null,null,null,null,0,null,null,null,0,null,0,null,"",""]
[379,null,null,null,null,null,null,null,null,null,null,null,null,null,0,null,null,null,0,null,0,null,"",""]
[380,null,null,null,null,null,null,null,null,null,null,null,null,null,0,null,null,null,0,null,0,null,"",""]
[381,null,null,null,null,null,null,null,null,null,null,null,null,null,0,null,null,null,0,null,0,null,"",""]
[382,null,null,null,null,null,null,null,null,null,null,null,null,null,0,null,null,null,0,null,0,null,"",""]
[383,null,null,null,null,null,null,null,null,null,null,null,null,null,0,null,null,null,0,null,0,null,"",""]
[384,null,null,null,null,null,null,null,null,null,null,null,null,null,0,null,null,null,0,null,0,null,"",""]
[{"$f":"+A491+1","v":385},null,null,null,null,null,null,null,null,null,null,null,null,null,{"$f":"J492*M492","v":0},null,null,null,{"$f":"O492*Q492","v":0},null,{"$f":"O492-S492","v":0},null,"",""]
[386,null,null,null,null,null,null,null,null,null,null,null,null,null,0,null,null,null,0,null,0,null,"",""]
[387,null,null,null,null,null,null,null,null,null,null,null,null,null,0,null,null,null,0,null,0,null,"",""]
[388,null,null,null,null,null,null,null,null,null,null,null,null,null,0,null,null,null,0,null,0,null,"",""]
[389,null,null,null,null,null,null,null,null,null,null,null,null,null,0,null,null,null,0,null,0,null,"",""]
[390,null,null,null,null,null,null,null,null,null,null,null,null,null,0,null,null,null,0,null,0,null,"",""]
[391,null,null,null,null,null,null,null,null,null,null,null,null,null,0,null,null,null,0,null,0,null,"",""]
[392,null,null,null,null,null,null,null,null,null,null,null,null,null,0,null,null,null,0,null,0,null,"",""]
[393,null,null,null,null,null,null,null,null,null,null,null,null,null,0,null,null,null,0,null,0,null,"",""]
[394,null,null,null,null,null,null,null,null,null,null,null,null,null,0,null,null,null,0,null,0,null,"",""]
[395,null,null,null,null,null,null,null,null,null,null,null,null,null,0,null,null,null,0,null,0,null,"",""]
[396,null,null,null,null,null,null,null,null,null,null,null,null,null,0,null,null,null,0,null,0,null,"",""]
[397,null,null,null,null,null,null,null,null,null,null,null,null,null,0,null,null,null,0,null,0,null,"",""]
[398,null,null,null,null,null,null,null,null,null,null,null,null,null,0,null,null,null,0,null,0,null,"",""]
[399,null,null,null,null,null,null,null,null,null,null,null,null,null,0,null,null,null,0,null,0,null,"",""]
[400,null,null,null,null,null,null,null,null,null,null,null,null,null,0,null,null,null,0,null,0,null,"",""]
[{"$f":"+A507+1","v":401},null,null,null,null,null,null,null,null,null,null,null,null,null,{"$f":"J508*M508","v":0},null,null,null,{"$f":"O508*Q508","v":0},null,{"$f":"O508-S508","v":0},null,"",""]
[402,null,null,null,null,null,null,null,null,null,null,null,null,null,0,null,null,null,0,null,0,null,"",""]
[403,null,null,null,null,null,null,null,null,null,null,null,null,null,0,null,null,null,0,null,0,null,"",""]
[404,null,null,null,null,null,null,null,null,null,null,null,null,null,0,null,null,null,0,null,0,null,"",""]
[405,null,null,null,null,null,null,null,null,null,null,null,null,null,0,null,null,null,0,null,0,null,"",""]
[406,null,null,null,null,null,null,null,null,null,null,null,null,null,0,null,null,null,0,null,0,null,"",""]
[407,null,null,null,null,null,null,null,null,null,null,null,null,null,0,null,null,null,0,null,0,null,"",""]
[408,null,null,null,null,null,null,null,null,null,null,null,null,null,0,null,null,null,0,null,0,null,"",""]
[409,null,null,null,null,null,null,null,null,null,null,null,null,null,0,null,null,null,0,null,0,null,"",""]
[410,null,null,null,null,null,null,null,null,null,null,null,null,null,0,null,null,null,0,null,0,null,"",""]
[411,null,null,null,null,null,null,null,null,null,null,null,null,null,0,null,null,null,0,null,0,null,"",""]
[412,null,null,null,null,null,null,null,null,null,null,null,null,null,0,null,null,null,0,null,0,null,"",""]
[413,null,null,null,null,null,null,null,null,null,null,null,null,null,0,null,null,null,0,null,0,null,"",""]
[414,null,null,null,null,null,null,null,null,null,null,null,null,null,0,null,null,null,0,null,0,null,"",""]
[415,null,null,null,null,null,null,null,null,null,null,null,null,null,0,null,null,null,0,null,0,null,"",""]
[416,null,null,null,null,null,null,null,null,null,null,null,null,null,0,null,null,null,0,null,0,null,"",""]
[{"$f":"+A523+1","v":417},null,null,null,null,null,null,null,null,null,null,null,null,null,{"$f":"J524*M524","v":0},null,null,null,{"$f":"O524*Q524","v":0},null,{"$f":"O524-S524","v":0},null,"",{"$f":"IF(ISBLANK(V524),\"\",S524)","v":""}]
[418,null,null,null,null,null,null,null,null,null,null,null,null,null,0,null,null,null,0,null,0,null,"",""]
[419,null,null,null,null,null,null,null,null,null,null,null,null,null,0,null,null,null,0,null,0,null,"",""]
[420,null,null,null,null,null,null,null,null,null,null,null,null,null,0,null,null,null,0,null,0,null,"",""]
[421,null,null,null,null,null,null,null,null,null,null,null,null,null,0,null,null,null,0,null,0,null,"",""]
[422,null,null,null,null,null,null,null,null,null,null,null,null,null,0,null,null,null,0,null,0,null,{"$f":"IF(ISBLANK(V529),\"\",IF(AND(V529=\"c\",M529>175),(M529-175)*J529,O529))","v":""},""]
[423,null,null,null,null,null,null,null,null,null,null,null,null,null,0,null,null,null,0,null,0,null,"",""]
[424,null,null,null,null,null,null,null,null,null,null,null,null,null,0,null,null,null,0,null,0,null,"",""]
[425,null,null,null,null,null,null,null,null,null,null,null,null,null,0,null,null,null,0,null,0,null,"",""]
[426,null,null,null,null,null,null,null,null,null,null,null,null,null,0,null,null,null,0,null,0,null,"",""]
[427,null,null,null,null,null,null,null,null,null,null,null,null,null,0,null,null,null,0,null,0,null,"",""]
[428,null,null,null,null,null,null,null,null,null,null,null,null,null,0,null,null,null,0,null,0,null,"",""]
[429,null,null,null,null,null,null,null,null,null,null,null,null,null,0,null,null,null,0,null,0,null,"",""]
[430,null,null,null,null,null,null,null,null,null,null,null,null,null,0,null,null,null,0,null,0,null,"",""]
[431,null,null,null,null,null,null,null,null,null,null,null,null,null,0,null,null,null,0,null,0,null,"",""]
[432,null,null,null,null,null,null,null,null,null,null,null,null,null,0,null,null,null,0,null,0,null,"",""]
[{"$f":"+A539+1","v":433},null,null,null,null,null,null,null,null,null,null,null,null,null,{"$f":"J540*M540","v":0},null,null,null,{"$f":"O540*Q540","v":0},null,{"$f":"O540-S540","v":0},null,"",""]
[434,null,null,null,null,null,null,null,null,null,null,null,null,null,0,null,null,null,0,null,0,null,"",""]
[435,null,null,null,null,null,null,null,null,null,null,null,null,null,0,null,null,null,0,null,0,null,"",""]
[436,null,null,null,null,null,null,null,null,null,null,null,null,null,0,null,null,null,0,null,0,null,"",""]
[437,null,null,null,null,null,null,null,null,null,null,null,null,null,0,null,null,null,0,null,0,null,"",""]
[438,null,null,null,null,null,null,null,null,null,null,null,null,null,0,null,null,null,0,null,0,null,"",""]
[439,null,null,null,null,null,null,null,null,null,null,null,null,null,0,null,null,null,0,null,0,null,"",""]
[440,null,null,null,null,null,null,null,null,null,null,null,null,null,0,null,null,null,0,null,0,null,"",""]
[441,null,null,null,null,null,null,null,null,null,null,null,null,null,0,null,null,null,0,null,0,null,"",""]
[442,null,null,null,null,null,null,null,null,null,null,null,null,null,0,null,null,null,0,null,0,null,"",""]
[443,null,null,null,null,null,null,null,null,null,null,null,null,null,0,null,null,null,0,null,0,null,"",""]
[444,null,null,null,null,null,null,null,null,null,null,null,null,null,0,null,null,null,0,null,0,null,"",""]
[445,null,null,null,null,null,null,null,null,null,null,null,null,null,0,null,null,null,0,null,0,null,"",""]
[446,null,null,null,null,null,null,null,null,null,null,null,null,null,0,null,null,null,0,null,0,null,"",""]
[447,null,null,null,null,null,null,null,null,null,null,null,null,null,0,null,null,null,0,null,0,null,"",""]
[448,null,null,null,null,null,null,null,null,null,null,null,null,null,0,null,null,null,0,null,0,null,"",""]
[{"$f":"+A555+1","v":449},null,null,null,null,null,null,null,null,null,null,null,null,null,{"$f":"J556*M556","v":0},null,null,null,{"$f":"O556*Q556","v":0},null,{"$f":"O556-S556","v":0},null,"",""]
[450,null,null,null,null,null,null,null,null,null,null,null,null,null,0,null,null,null,0,null,0,null,"",""]
[451,null,null,null,null,null,null,null,null,null,null,null,null,null,0,null,null,null,0,null,0,null,"",""]
[452,null,null,null,null,null,null,null,null,null,null,null,null,null,0,null,null,null,0,null,0,null,"",""]
[453,null,null,null,null,null,null,null,null,null,null,null,null,null,0,null,null,null,0,null,0,null,"",""]
[454,null,null,null,null,null,null,null,null,null,null,null,null,null,0,null,null,null,0,null,0,null,"",""]
[455,null,null,null,null,null,null,null,null,null,null,null,null,null,0,null,null,null,0,null,0,null,"",""]
[456,null,null,null,null,null,null,null,null,null,null,null,null,null,0,null,null,null,0,null,0,null,"",""]
[457,null,null,null,null,null,null,null,null,null,null,null,null,null,0,null,null,null,0,null,0,null,"",""]
[458,null,null,null,null,null,null,null,null,null,null,null,null,null,0,null,null,null,0,null,0,null,"",""]
[459,null,null,null,null,null,null,null,null,null,null,null,null,null,0,null,null,null,0,null,0,null,"",""]
[460,null,null,null,null,null,null,null,null,null,null,null,null,null,0,null,null,null,0,null,0,null,"",""]
[461,null,null,null,null,null,null,null,null,null,null,null,null,null,0,null,null,null,0,null,0,null,"",""]
[462,null,null,null,null,null,null,null,null,null,null,null,null,null,0,null,null,null,0,null,0,null,"",""]
[463,null,null,null,null,null,null,null,null,null,null,null,null,null,0,null,null,null,0,null,0,null,"",""]
[464,null,null,null,null,null,null,null,null,null,null,null,null,null,0,null,null,null,0,null,0,null,"",""]
[{"$f":"+A571+1","v":465},null,null,null,null,null,null,null,null,null,null,null,null,null,{"$f":"J572*M572","v":0},null,null,null,{"$f":"O572*Q572","v":0},null,{"$f":"O572-S572","v":0},null,"",""]
[466,null,null,null,null,null,null,null,null,null,null,null,null,null,0,null,null,null,0,null,0,null,"",""]
[467,null,null,null,null,null,null,null,null,null,null,null,null,null,0,null,null,null,0,null,0,null,"",""]
[468,null,null,null,null,null,null,null,null,null,null,null,null,null,0,null,null,null,0,null,0,null,"",""]
[469,null,null,null,null,null,null,null,null,null,null,null,null,null,0,null,null,null,0,null,0,null,"",""]
[470,null,null,null,null,null,null,null,null,null,null,null,null,null,0,null,null,null,0,null,0,null,"",""]
[471,null,null,null,null,null,null,null,null,null,null,null,null,null,0,null,null,null,0,null,0,null,"",""]
[472,null,null,null,null,null,null,null,null,null,null,null,null,null,0,null,null,null,0,null,0,null,"",""]
[473,null,null,null,null,null,null,null,null,null,null,null,null,null,0,null,null,null,0,null,0,null,"",""]
[474,null,null,null,null,null,null,null,null,null,null,null,null,null,0,null,null,null,0,null,0,null,"",""]
[475,null,null,null,null,null,null,null,null,null,null,null,null,null,0,null,null,null,0,null,0,null,"",""]
[476,null,null,null,null,null,null,null,null,null,null,null,null,null,0,null,null,null,0,null,0,null,"",""]
[477,null,null,null,null,null,null,null,null,null,null,null,null,null,0,null,null,null,0,null,0,null,"",""]
[478,null,null,null,null,null,null,null,null,null,null,null,null,null,0,null,null,null,0,null,0,null,"",""]
[479,null,null,null,null,null,null,null,null,null,null,null,null,null,0,null,null,null,0,null,0,null,"",""]
[480,null,null,null,null,null,null,null,null,null,null,null,null,null,0,null,null,null,0,null,0,null,"",""]
[{"$f":"+A587+1","v":481},null,null,null,null,null,null,null,null,null,null,null,null,null,{"$f":"J588*M588","v":0},null,null,null,{"$f":"O588*Q588","v":0},null,{"$f":"O588-S588","v":0},null,"",{"$f":"IF(ISBLANK(V588),\"\",S588)","v":""}]
[482,null,null,null,null,null,null,null,null,null,null,null,null,null,0,null,null,null,0,null,0,null,"",""]
[483,null,null,null,null,null,null,null,null,null,null,null,null,null,0,null,null,null,0,null,0,null,"",""]
[484,null,null,null,null,null,null,null,null,null,null,null,null,null,0,null,null,null,0,null,0,null,"",""]
[485,null,null,null,null,null,null,null,null,null,null,null,null,null,0,null,null,null,0,null,0,null,"",""]
[486,null,null,null,null,null,null,null,null,null,null,null,null,null,0,null,null,null,0,null,0,null,{"$f":"IF(ISBLANK(V593),\"\",IF(AND(V593=\"c\",M593>175),(M593-175)*J593,O593))","v":""},""]
[487,null,null,null,null,null,null,null,null,null,null,null,null,null,0,null,null,null,0,null,0,null,"",""]
[488,null,null,null,null,null,null,null,null,null,null,null,null,null,0,null,null,null,0,null,0,null,"",""]
[489,null,null,null,null,null,null,null,null,null,null,null,null,null,0,null,null,null,0,null,0,null,"",""]
[490,null,null,null,null,null,null,null,null,null,null,null,null,null,0,null,null,null,0,null,0,null,"",""]
[491,null,null,null,null,null,null,null,null,null,null,null,null,null,0,null,null,null,0,null,0,null,"",""]
[492,null,null,null,null,null,null,null,null,null,null,null,null,null,0,null,null,null,0,null,0,null,"",""]
[493,null,null,null,null,null,null,null,null,null,null,null,null,null,0,null,null,null,0,null,0,null,"",""]
[494,null,null,null,null,null,null,null,null,null,null,null,null,null,0,null,null,null,0,null,0,null,"",""]
[495,null,null,null,null,null,null,null,null,null,null,null,null,null,0,null,null,null,0,null,0,null,"",""]
[496,null,null,null,null,null,null,null,null,null,null,null,null,null,0,null,null,null,0,null,0,null,"",""]
[{"$f":"+A603+1","v":497},null,null,null,null,null,null,null,null,null,null,null,null,null,{"$f":"J604*M604","v":0},null,null,null,{"$f":"O604*Q604","v":0},null,{"$f":"O604-S604","v":0},null,"",""]
[498,null,null,null,null,null,null,null,null,null,null,null,null,null,0,null,null,null,0,null,0,null,"",""]
[499,null,null,null,null,null,null,null,null,null,null,null,null,null,0,null,null,null,0,null,0,null,"",""]
[500,null,null,null,null,null,null,null,null,null,null,null,null,null,0,null,null,null,0,null,0,null,"",""]
[501,null,null,null,null,null,null,null,null,null,null,null,null,null,0,null,null,null,0,null,0,null,"",""]
[502,null,null,null,null,null,null,null,null,null,null,null,null,null,0,null,null,null,0,null,0,null,"",""]
[503,null,null,null,null,null,null,null,null,null,null,null,null,null,0,null,null,null,0,null,0,null,"",""]
[504,null,null,null,null,null,null,null,null,null,null,null,null,null,0,null,null,null,0,null,0,null,"",""]
[505,null,null,null,null,null,null,null,null,null,null,null,null,null,0,null,null,null,0,null,0,null,"",""]
[506,null,null,null,null,null,null,null,null,null,null,null,null,null,0,null,null,null,0,null,0,null,"",""]
[507,null,null,null,null,null,null,null,null,null,null,null,null,null,0,null,null,null,0,null,0,null,"",""]
[508,null,null,null,null,null,null,null,null,null,null,null,null,null,0,null,null,null,0,null,0,null,"",""]
[509,null,null,null,null,null,null,null,null,null,null,null,null,null,0,null,null,null,0,null,0,null,"",""]
[510,null,null,null,null,null,null,null,null,null,null,null,null,null,0,null,null,null,0,null,0,null,"",""]
[511,null,null,null,null,null,null,null,null,null,null,null,null,null,0,null,null,null,0,null,0,null,"",""]
[512,null,null,null,null,null,null,null,null,null,null,null,null,null,0,null,null,null,0,null,0,null,"",""]
[{"$f":"+A619+1","v":513},null,null,null,null,null,null,null,null,null,null,null,null,null,{"$f":"J620*M620","v":0},null,null,null,{"$f":"O620*Q620","v":0},null,{"$f":"O620-S620","v":0},null,"",""]
[514,null,null,null,null,null,null,null,null,null,null,null,null,null,0,null,null,null,0,null,0,null,"",""]
[515,null,null,null,null,null,null,null,null,null,null,null,null,null,0,null,null,null,0,null,0,null,"",""]
[516,null,null,null,null,null,null,null,null,null,null,null,null,null,0,null,null,null,0,null,0,null,"",""]
[517,null,null,null,null,null,null,null,null,null,null,null,null,null,0,null,null,null,0,null,0,null,"",""]
[518,null,null,null,null,null,null,null,null,null,null,null,null,null,0,null,null,null,0,null,0,null,"",""]
[519,null,null,null,null,null,null,null,null,null,null,null,null,null,0,null,null,null,0,null,0,null,"",""]
[520,null,null,null,null,null,null,null,null,null,null,null,null,null,0,null,null,null,0,null,0,null,"",""]
[521,null,null,null,null,null,null,null,null,null,null,null,null,null,0,null,null,null,0,null,0,null,"",""]
[522,null,null,null,null,null,null,null,null,null,null,null,null,null,0,null,null,null,0,null,0,null,"",""]
[523,null,null,null,null,null,null,null,null,null,null,null,null,null,0,null,null,null,0,null,0,null,"",""]
[524,null,null,null,null,null,null,null,null,null,null,null,null,null,0,null,null,null,0,null,0,null,"",""]
[525,null,null,null,null,null,null,null,null,null,null,null,null,null,0,null,null,null,0,null,0,null,"",""]
[526,null,null,null,null,null,null,null,null,null,null,null,null,null,0,null,null,null,0,null,0,null,"",""]
[527,null,null,null,null,null,null,null,null,null,null,null,null,null,0,null,null,null,0,null,0,null,"",""]
[528,null,null,null,null,null,null,null,null,null,null,null,null,null,0,null,null,null,0,null,0,null,"",""]
[{"$f":"+A635+1","v":529},null,null,null,null,null,null,null,null,null,null,null,null,null,{"$f":"J636*M636","v":0},null,null,null,{"$f":"O636*Q636","v":0},null,{"$f":"O636-S636","v":0},null,"",""]
[530,null,null,null,null,null,null,null,null,null,null,null,null,null,0,null,null,null,0,null,0,null,"",""]
[531,null,null,null,null,null,null,null,null,null,null,null,null,null,0,null,null,null,0,null,0,null,"",""]
[532,null,null,null,null,null,null,null,null,null,null,null,null,null,0,null,null,null,0,null,0,null,"",""]
[533,null,null,null,null,null,null,null,null,null,null,null,null,null,0,null,null,null,0,null,0,null,"",""]
[534,null,null,null,null,null,null,null,null,null,null,null,null,null,0,null,null,null,0,null,0,null,"",""]
[535,null,null,null,null,null,null,null,null,null,null,null,null,null,0,null,null,null,0,null,0,null,"",""]
[536,null,null,null,null,null,null,null,null,null,null,null,null,null,0,null,null,null,0,null,0,null,"",""]
[537,null,null,null,null,null,null,null,null,null,null,null,null,null,0,null,null,null,0,null,0,null,"",""]
[538,null,null,null,null,null,null,null,null,null,null,null,null,null,0,null,null,null,0,null,0,null,"",""]
[539,null,null,null,null,null,null,null,null,null,null,null,null,null,0,null,null,null,0,null,0,null,"",""]
[540,null,null,null,null,null,null,null,null,null,null,null,null,null,0,null,null,null,0,null,0,null,"",""]
[541,null,null,null,null,null,null,null,null,null,null,null,null,null,0,null,null,null,0,null,0,null,"",""]
[542,null,null,null,null,null,null,null,null,null,null,null,null,null,0,null,null,null,0,null,0,null,"",""]
[543,null,null,null,null,null,null,null,null,null,null,null,null,null,0,null,null,null,0,null,0,null,"",""]
[544,null,null,null,null,null,null,null,null,null,null,null,null,null,0,null,null,null,0,null,0,null,"",""]
[{"$f":"+A651+1","v":545},null,null,null,null,null,null,null,null,null,null,null,null,null,{"$f":"J652*M652","v":0},null,null,null,{"$f":"O652*Q652","v":0},null,{"$f":"O652-S652","v":0},null,"",{"$f":"IF(ISBLANK(V652),\"\",S652)","v":""}]
[546,null,null,null,null,null,null,null,null,null,null,null,null,null,0,null,null,null,0,null,0,null,"",""]
[547,null,null,null,null,null,null,null,null,null,null,null,null,null,0,null,null,null,0,null,0,null,"",""]
[548,null,null,null,null,null,null,null,null,null,null,null,null,null,0,null,null,null,0,null,0,null,"",""]
[549,null,null,null,null,null,null,null,null,null,null,null,null,null,0,null,null,null,0,null,0,null,"",""]
[550,null,null,null,null,null,null,null,null,null,null,null,null,null,0,null,null,null,0,null,0,null,{"$f":"IF(ISBLANK(V657),\"\",IF(AND(V657=\"c\",M657>175),(M657-175)*J657,O657))","v":""},""]
[551,null,null,null,null,null,null,null,null,null,null,null,null,null,0,null,null,null,0,null,0,null,"",""]
[552,null,null,null,null,null,null,null,null,null,null,null,null,null,0,null,null,null,0,null,0,null,"",""]
[553,null,null,null,null,null,null,null,null,null,null,null,null,null,0,null,null,null,0,null,0,null,"",""]
[554,null,null,null,null,null,null,null,null,null,null,null,null,null,0,null,null,null,0,null,0,null,"",""]
[555,null,null,null,null,null,null,null,null,null,null,null,null,null,0,null,null,null,0,null,0,null,"",""]
[556,null,null,null,null,null,null,null,null,null,null,null,null,null,0,null,null,null,0,null,0,null,"",""]
[557,null,null,null,null,null,null,null,null,null,null,null,null,null,0,null,null,null,0,null,0,null,"",""]
[558,null,null,null,null,null,null,null,null,null,null,null,null,null,0,null,null,null,0,null,0,null,"",""]
[559,null,null,null,null,null,null,null,null,null,null,null,null,null,0,null,null,null,0,null,0,null,"",""]
[560,null,null,null,null,null,null,null,null,null,null,null,null,null,0,null,null,null,0,null,0,null,"",""]
[{"$f":"+A667+1","v":561},null,null,null,null,null,null,null,null,null,null,null,null,null,{"$f":"J668*M668","v":0},null,null,null,{"$f":"O668*Q668","v":0},null,{"$f":"O668-S668","v":0},null,"",""]
[562,null,null,null,null,null,null,null,null,null,null,null,null,null,0,null,null,null,0,null,0,null,"",""]
[563,null,null,null,null,null,null,null,null,null,null,null,null,null,0,null,null,null,0,null,0,null,"",""]
[564,null,null,null,null,null,null,null,null,null,null,null,null,null,0,null,null,null,0,null,0,null,"",""]
[565,null,null,null,null,null,null,null,null,null,null,null,null,null,0,null,null,null,0,null,0,null,"",""]
[566,null,null,null,null,null,null,null,null,null,null,null,null,null,0,null,null,null,0,null,0,null,"",""]
[567,null,null,null,null,null,null,null,null,null,null,null,null,null,0,null,null,null,0,null,0,null,"",""]
[568,null,null,null,null,null,null,null,null,null,null,null,null,null,0,null,null,null,0,null,0,null,"",""]
[569,null,null,null,null,null,null,null,null,null,null,null,null,null,0,null,null,null,0,null,0,null,"",""]
[570,null,null,null,null,null,null,null,null,null,null,null,null,null,0,null,null,null,0,null,0,null,"",""]
[571,null,null,null,null,null,null,null,null,null,null,null,null,null,0,null,null,null,0,null,0,null,"",""]
[572,null,null,null,null,null,null,null,null,null,null,null,null,null,0,null,null,null,0,null,0,null,"",""]
[573,null,null,null,null,null,null,null,null,null,null,null,null,null,0,null,null,null,0,null,0,null,"",""]
[574,null,null,null,null,null,null,null,null,null,null,null,null,null,0,null,null,null,0,null,0,null,"",""]
[575,null,null,null,null,null,null,null,null,null,null,null,null,null,0,null,null,null,0,null,0,null,"",""]
[576,null,null,null,null,null,null,null,null,null,null,null,null,null,0,null,null,null,0,null,0,null,"",""]
[{"$f":"+A683+1","v":577},null,null,null,null,null,null,null,null,null,null,null,null,null,{"$f":"J684*M684","v":0},null,null,null,{"$f":"O684*Q684","v":0},null,{"$f":"O684-S684","v":0},null,"",""]
[578,null,null,null,null,null,null,null,null,null,null,null,null,null,0,null,null,null,0,null,0,null,"",""]
[579,null,null,null,null,null,null,null,null,null,null,null,null,null,0,null,null,null,0,null,0,null,"",""]
[580,null,null,null,null,null,null,null,null,null,null,null,null,null,0,null,null,null,0,null,0,null,"",""]
[581,null,null,null,null,null,null,null,null,null,null,null,null,null,0,null,null,null,0,null,0,null,"",""]
[582,null,null,null,null,null,null,null,null,null,null,null,null,null,0,null,null,null,0,null,0,null,"",""]
[583,null,null,null,null,null,null,null,null,null,null,null,null,null,0,null,null,null,0,null,0,null,"",""]
[584,null,null,null,null,null,null,null,null,null,null,null,null,null,0,null,null,null,0,null,0,null,"",""]
[585,null,null,null,null,null,null,null,null,null,null,null,null,null,0,null,null,null,0,null,0,null,"",""]
[586,null,null,null,null,null,null,null,null,null,null,null,null,null,0,null,null,null,0,null,0,null,"",""]
[587,null,null,null,null,null,null,null,null,null,null,null,null,null,0,null,null,null,0,null,0,null,"",""]
[588,null,null,null,null,null,null,null,null,null,null,null,null,null,0,null,null,null,0,null,0,null,"",""]
[589,null,null,null,null,null,null,null,null,null,null,null,null,null,0,null,null,null,0,null,0,null,"",""]
[590,null,null,null,null,null,null,null,null,null,null,null,null,null,0,null,null,null,0,null,0,null,"",""]
[591,null,null,null,null,null,null,null,null,null,null,null,null,null,0,null,null,null,0,null,0,null,"",""]
[592,null,null,null,null,null,null,null,null,null,null,null,null,null,0,null,null,null,0,null,0,null,"",""]
[{"$f":"+A699+1","v":593},null,null,null,null,null,null,null,null,null,null,null,null,null,{"$f":"J700*M700","v":0},null,null,null,{"$f":"O700*Q700","v":0},null,{"$f":"O700-S700","v":0},null,"",""]
[594,null,null,null,null,null,null,null,null,null,null,null,null,null,0,null,null,null,0,null,0,null,"",""]
[595,null,null,null,null,null,null,null,null,null,null,null,null,null,0,null,null,null,0,null,0,null,"",""]
[596,null,null,null,null,null,null,null,null,null,null,null,null,null,0,null,null,null,0,null,0,null,"",""]
[597,null,null,null,null,null,null,null,null,null,null,null,null,null,0,null,null,null,0,null,0,null,"",""]
[598,null,null,null,null,null,null,null,null,null,null,null,null,null,0,null,null,null,0,null,0,null,"",""]
[599,null,null,null,null,null,null,null,null,null,null,null,null,null,0,null,null,null,0,null,0,null,"",""]
[600,null,null,null,null,null,null,null,null,null,null,null,null,null,0,null,null,null,0,null,0,null,"",""]
[601,null,null,null,null,null,null,null,null,null,null,null,null,null,0,null,null,null,0,null,0,null,"",""]
[602,null,null,null,null,null,null,null,null,null,null,null,null,null,0,null,null,null,0,null,0,null,"",""]
[603,null,null,null,null,null,null,null,null,null,null,null,null,null,0,null,null,null,0,null,0,null,"",""]
[604,null,null,null,null,null,null,null,null,null,null,null,null,null,0,null,null,null,0,null,0,null,"",""]
[605,null,null,null,null,null,null,null,null,null,null,null,null,null,0,null,null,null,0,null,0,null,"",""]
[606,null,null,null,null,null,null,null,null,null,null,null,null,null,0,null,null,null,0,null,0,null,"",""]
[607,null,null,null,null,null,null,null,null,null,null,null,null,null,0,null,null,null,0,null,0,null,"",""]
[608,null,null,null,null,null,null,null,null,null,null,null,null,null,0,null,null,null,0,null,0,null,"",""]
[{"$f":"+A715+1","v":609},null,null,null,null,null,null,null,null,null,null,null,null,null,{"$f":"J716*M716","v":0},null,null,null,{"$f":"O716*Q716","v":0},null,{"$f":"O716-S716","v":0},null,"",{"$f":"IF(ISBLANK(V716),\"\",S716)","v":""}]
[610,null,null,null,null,null,null,null,null,null,null,null,null,null,0,null,null,null,0,null,0,null,"",""]
[611,null,null,null,null,null,null,null,null,null,null,null,null,null,0,null,null,null,0,null,0,null,"",""]
[612,null,null,null,null,null,null,null,null,null,null,null,null,null,0,null,null,null,0,null,0,null,"",""]
[613,null,null,null,null,null,null,null,null,null,null,null,null,null,0,null,null,null,0,null,0,null,"",""]
[614,null,null,null,null,null,null,null,null,null,null,null,null,null,0,null,null,null,0,null,0,null,{"$f":"IF(ISBLANK(V721),\"\",IF(AND(V721=\"c\",M721>175),(M721-175)*J721,O721))","v":""},""]
[615,null,null,null,null,null,null,null,null,null,null,null,null,null,0,null,null,null,0,null,0,null,"",""]
[616,null,null,null,null,null,null,null,null,null,null,null,null,null,0,null,null,null,0,null,0,null,"",""]
[617,null,null,null,null,null,null,null,null,null,null,null,null,null,0,null,null,null,0,null,0,null,"",""]
[618,null,null,null,null,null,null,null,null,null,null,null,null,null,0,null,null,null,0,null,0,null,"",""]
[619,null,null,null,null,null,null,null,null,null,null,null,null,null,0,null,null,null,0,null,0,null,"",""]
[620,null,null,null,null,null,null,null,null,null,null,null,null,null,0,null,null,null,0,null,0,null,"",""]
[621,null,null,null,null,null,null,null,null,null,null,null,null,null,0,null,null,null,0,null,0,null,"",""]
[622,null,null,null,null,null,null,null,null,null,null,null,null,null,0,null,null,null,0,null,0,null,"",""]
[623,null,null,null,null,null,null,null,null,null,null,null,null,null,0,null,null,null,0,null,0,null,"",""]
[624,null,null,null,null,null,null,null,null,null,null,null,null,null,0,null,null,null,0,null,0,null,"",""]
[{"$f":"+A731+1","v":625},null,null,null,null,null,null,null,null,null,null,null,null,null,{"$f":"J732*M732","v":0},null,null,null,{"$f":"O732*Q732","v":0},null,{"$f":"O732-S732","v":0},null,"",""]
[626,null,null,null,null,null,null,null,null,null,null,null,null,null,0,null,null,null,0,null,0,null,"",""]
[627,null,null,null,null,null,null,null,null,null,null,null,null,null,0,null,null,null,0,null,0,null,"",""]
[628,null,null,null,null,null,null,null,null,null,null,null,null,null,0,null,null,null,0,null,0,null,"",""]
[629,null,null,null,null,null,null,null,null,null,null,null,null,null,0,null,null,null,0,null,0,null,"",""]
[630,null,null,null,null,null,null,null,null,null,null,null,null,null,0,null,null,null,0,null,0,null,"",""]
[631,null,null,null,null,null,null,null,null,null,null,null,null,null,0,null,null,null,0,null,0,null,"",""]
[632,null,null,null,null,null,null,null,null,null,null,null,null,null,0,null,null,null,0,null,0,null,"",""]
[633,null,null,null,null,null,null,null,null,null,null,null,null,null,0,null,null,null,0,null,0,null,"",""]
[634,null,null,null,null,null,null,null,null,null,null,null,null,null,0,null,null,null,0,null,0,null,"",""]
[635,null,null,null,null,null,null,null,null,null,null,null,null,null,0,null,null,null,0,null,0,null,"",""]
[636,null,null,null,null,null,null,null,null,null,null,null,null,null,0,null,null,null,0,null,0,null,"",""]
[637,null,null,null,null,null,null,null,null,null,null,null,null,null,0,null,null,null,0,null,0,null,"",""]
[638,null,null,null,null,null,null,null,null,null,null,null,null,null,0,null,null,null,0,null,0,null,"",""]
[639,null,null,null,null,null,null,null,null,null,null,null,null,null,0,null,null,null,0,null,0,null,"",""]
[640,null,null,null,null,null,null,null,null,null,null,null,null,null,0,null,null,null,0,null,0,null,"",""]
[{"$f":"+A747+1","v":641},null,null,null,null,null,null,null,null,null,null,null,null,null,{"$f":"J748*M748","v":0},null,null,null,{"$f":"O748*Q748","v":0},null,{"$f":"O748-S748","v":0},null,"",""]
[642,null,null,null,null,null,null,null,null,null,null,null,null,null,0,null,null,null,0,null,0,null,"",""]
[643,null,null,null,null,null,null,null,null,null,null,null,null,null,0,null,null,null,0,null,0,null,"",""]
[644,null,null,null,null,null,null,null,null,null,null,null,null,null,0,null,null,null,0,null,0,null,"",""]
[645,null,null,null,null,null,null,null,null,null,null,null,null,null,0,null,null,null,0,null,0,null,"",""]
[646,null,null,null,null,null,null,null,null,null,null,null,null,null,0,null,null,null,0,null,0,null,"",""]
[647,null,null,null,null,null,null,null,null,null,null,null,null,null,0,null,null,null,0,null,0,null,"",""]
[648,null,null,null,null,null,null,null,null,null,null,null,null,null,0,null,null,null,0,null,0,null,"",""]
[649,null,null,null,null,null,null,null,null,null,null,null,null,null,0,null,null,null,0,null,0,null,"",""]
[650,null,null,null,null,null,null,null,null,null,null,null,null,null,0,null,null,null,0,null,0,null,"",""]
[651,null,null,null,null,null,null,null,null,null,null,null,null,null,0,null,null,null,0,null,0,null,"",""]
[652,null,null,null,null,null,null,null,null,null,null,null,null,null,0,null,null,null,0,null,0,null,"",""]
[653,null,null,null,null,null,null,null,null,null,null,null,null,null,0,null,null,null,0,null,0,null,"",""]
[654,null,null,null,null,null,null,null,null,null,null,null,null,null,0,null,null,null,0,null,0,null,"",""]
[655,null,null,null,null,null,null,null,null,null,null,null,null,null,0,null,null,null,0,null,0,null,"",""]
[656,null,null,null,null,null,null,null,null,null,null,null,null,null,0,null,null,null,0,null,0,null,"",""]
[{"$f":"+A763+1","v":657},null,null,null,null,null,null,null,null,null,null,null,null,null,{"$f":"J764*M764","v":0},null,null,null,{"$f":"O764*Q764","v":0},null,{"$f":"O764-S764","v":0},null,"",""]
[658,null,null,null,null,null,null,null,null,null,null,null,null,null,0,null,null,null,0,null,0,null,"",""]
[659,null,null,null,null,null,null,null,null,null,null,null,null,null,0,null,null,null,0,null,0,null,"",""]
[660,null,null,null,null,null,null,null,null,null,null,null,null,null,0,null,null,null,0,null,0,null,"",""]
[661,null,null,null,null,null,null,null,null,null,null,null,null,null,0,null,null,null,0,null,0,null,"",""]
[662,null,null,null,null,null,null,null,null,null,null,null,null,null,0,null,null,null,0,null,0,null,"",""]
[663,null,null,null,null,null,null,null,null,null,null,null,null,null,0,null,null,null,0,null,0,null,"",""]
[664,null,null,null,null,null,null,null,null,null,null,null,null,null,0,null,null,null,0,null,0,null,"",""]
[665,null,null,null,null,null,null,null,null,null,null,null,null,null,0,null,null,null,0,null,0,null,"",""]
[666,null,null,null,null,null,null,null,null,null,null,null,null,null,0,null,null,null,0,null,0,null,"",""]
[667,null,null,null,null,null,null,null,null,null,null,null,null,null,0,null,null,null,0,null,0,null,"",""]
[668,null,null,null,null,null,null,null,null,null,null,null,null,null,0,null,null,null,0,null,0,null,"",""]
[669,null,null,null,null,null,null,null,null,null,null,null,null,null,0,null,null,null,0,null,0,null,"",""]
[670,null,null,null,null,null,null,null,null,null,null,null,null,null,0,null,null,null,0,null,0,null,"",""]
[671,null,null,null,null,null,null,null,null,null,null,null,null,null,0,null,null,null,0,null,0,null,"",""]
[672,null,null,null,null,null,null,null,null,null,null,null,null,null,0,null,null,null,0,null,0,null,"",""]
[{"$f":"+A779+1","v":673},null,null,null,null,null,null,null,null,null,null,null,null,null,{"$f":"J780*M780","v":0},null,null,null,{"$f":"O780*Q780","v":0},null,{"$f":"O780-S780","v":0},null,"",{"$f":"IF(ISBLANK(V780),\"\",S780)","v":""}]
[674,null,null,null,null,null,null,null,null,null,null,null,null,null,0,null,null,null,0,null,0,null,"",""]
[675,null,null,null,null,null,null,null,null,null,null,null,null,null,0,null,null,null,0,null,0,null,"",""]
[676,null,null,null,null,null,null,null,null,null,null,null,null,null,0,null,null,null,0,null,0,null,"",""]
[677,null,null,null,null,null,null,null,null,null,null,null,null,null,0,null,null,null,0,null,0,null,"",""]
[678,null,null,null,null,null,null,null,null,null,null,null,null,null,0,null,null,null,0,null,0,null,{"$f":"IF(ISBLANK(V785),\"\",IF(AND(V785=\"c\",M785>175),(M785-175)*J785,O785))","v":""},""]
[679,null,null,null,null,null,null,null,null,null,null,null,null,null,0,null,null,null,0,null,0,null,"",""]
[680,null,null,null,null,null,null,null,null,null,null,null,null,null,0,null,null,null,0,null,0,null,"",""]
[681,null,null,null,null,null,null,null,null,null,null,null,null,null,0,null,null,null,0,null,0,null,"",""]
[682,null,null,null,null,null,null,null,null,null,null,null,null,null,0,null,null,null,0,null,0,null,"",""]
[683,null,null,null,null,null,null,null,null,null,null,null,null,null,0,null,null,null,0,null,0,null,"",""]
[684,null,null,null,null,null,null,null,null,null,null,null,null,null,0,null,null,null,0,null,0,null,"",""]
[685,null,null,null,null,null,null,null,null,null,null,null,null,null,0,null,null,null,0,null,0,null,"",""]
[686,null,null,null,null,null,null,null,null,null,null,null,null,null,0,null,null,null,0,null,0,null,"",""]
[687,null,null,null,null,null,null,null,null,null,null,null,null,null,0,null,null,null,0,null,0,null,"",""]
[688,null,null,null,null,null,null,null,null,null,null,null,null,null,0,null,null,null,0,null,0,null,"",""]
[{"$f":"+A795+1","v":689},null,null,null,null,null,null,null,null,null,null,null,null,null,{"$f":"J796*M796","v":0},null,null,null,{"$f":"O796*Q796","v":0},null,{"$f":"O796-S796","v":0},null,"",""]
[690,null,null,null,null,null,null,null,null,null,null,null,null,null,0,null,null,null,0,null,0,null,"",""]
[691,null,null,null,null,null,null,null,null,null,null,null,null,null,0,null,null,null,0,null,0,null,"",""]
[692,null,null,null,null,null,null,null,null,null,null,null,null,null,0,null,null,null,0,null,0,null,"",""]
[693,null,null,null,null,null,null,null,null,null,null,null,null,null,0,null,null,null,0,null,0,null,"",""]
[694,null,null,null,null,null,null,null,null,null,null,null,null,null,0,null,null,null,0,null,0,null,"",""]
[695,null,null,null,null,null,null,null,null,null,null,null,null,null,0,null,null,null,0,null,0,null,"",""]
[696,null,null,null,null,null,null,null,null,null,null,null,null,null,0,null,null,null,0,null,0,null,"",""]
[697,null,null,null,null,null,null,null,null,null,null,null,null,null,0,null,null,null,0,null,0,null,"",""]
[698,null,null,null,null,null,null,null,null,null,null,null,null,null,0,null,null,null,0,null,0,null,"",""]
[699,null,null,null,null,null,null,null,null,null,null,null,null,null,0,null,null,null,0,null,0,null,"",""]
[700,null,null,null,null,null,null,null,null,null,null,null,null,null,0,null,null,null,0,null,0,null,"",""]
[701,null,null,null,null,null,null,null,null,null,null,null,null,null,0,null,null,null,0,null,0,null,"",""]
[702,null,null,null,null,null,null,null,null,null,null,null,null,null,0,null,null,null,0,null,0,null,"",""]
[703,null,null,null,null,null,null,null,null,null,null,null,null,null,0,null,null,null,0,null,0,null,"",""]
[704,null,null,null,null,null,null,null,null,null,null,null,null,null,0,null,null,null,0,null,0,null,"",""]
[{"$f":"+A811+1","v":705},null,null,null,null,null,null,null,null,null,null,null,null,null,{"$f":"J812*M812","v":0},null,null,null,{"$f":"O812*Q812","v":0},null,{"$f":"O812-S812","v":0},null,"",""]
[706,null,null,null,null,null,null,null,null,null,null,null,null,null,0,null,null,null,0,null,0,null,"",""]
[707,null,null,null,null,null,null,null,null,null,null,null,null,null,0,null,null,null,0,null,0,null,"",""]
[708,null,null,null,null,null,null,null,null,null,null,null,null,null,0,null,null,null,0,null,0,null,"",""]
[709,null,null,null,null,null,null,null,null,null,null,null,null,null,0,null,null,null,0,null,0,null,"",""]
[710,null,null,null,null,null,null,null,null,null,null,null,null,null,0,null,null,null,0,null,0,null,"",""]
[711,null,null,null,null,null,null,null,null,null,null,null,null,null,0,null,null,null,0,null,0,null,"",""]
[712,null,null,null,null,null,null,null,null,null,null,null,null,null,0,null,null,null,0,null,0,null,"",""]
[713,null,null,null,null,null,null,null,null,null,null,null,null,null,0,null,null,null,0,null,0,null,"",""]
[714,null,null,null,null,null,null,null,null,null,null,null,null,null,0,null,null,null,0,null,0,null,"",""]
[715,null,null,null,null,null,null,null,null,null,null,null,null,null,0,null,null,null,0,null,0,null,"",""]
[716,null,null,null,null,null,null,null,null,null,null,null,null,null,0,null,null,null,0,null,0,null,"",""]
[717,null,null,null,null,null,null,null,null,null,null,null,null,null,0,null,null,null,0,null,0,null,"",""]
[718,null,null,null,null,null,null,null,null,null,null,null,null,null,0,null,null,null,0,null,0,null,"",""]
[719,null,null,null,null,null,null,null,null,null,null,null,null,null,0,null,null,null,0,null,0,null,"",""]
[720,null,null,null,null,null,null,null,null,null,null,null,null,null,0,null,null,null,0,null,0,null,"",""]
[{"$f":"+A827+1","v":721},null,null,null,null,null,null,null,null,null,null,null,null,null,{"$f":"J828*M828","v":0},null,null,null,{"$f":"O828*Q828","v":0},null,{"$f":"O828-S828","v":0},null,"",""]
[722,null,null,null,null,null,null,null,null,null,null,null,null,null,0,null,null,null,0,null,0,null,"",""]
[723,null,null,null,null,null,null,null,null,null,null,null,null,null,0,null,null,null,0,null,0,null,"",""]
[724,null,null,null,null,null,null,null,null,null,null,null,null,null,0,null,null,null,0,null,0,null,"",""]
[725,null,null,null,null,null,null,null,null,null,null,null,null,null,0,null,null,null,0,null,0,null,"",""]
[726,null,null,null,null,null,null,null,null,null,null,null,null,null,0,null,null,null,0,null,0,null,"",""]
[727,null,null,null,null,null,null,null,null,null,null,null,null,null,0,null,null,null,0,null,0,null,"",""]
[728,null,null,null,null,null,null,null,null,null,null,null,null,null,0,null,null,null,0,null,0,null,"",""]
[729,null,null,null,null,null,null,null,null,null,null,null,null,null,0,null,null,null,0,null,0,null,"",""]
[730,null,null,null,null,null,null,null,null,null,null,null,null,null,0,null,null,null,0,null,0,null,"",""]
[731,null,null,null,null,null,null,null,null,null,null,null,null,null,0,null,null,null,0,null,0,null,"",""]
[732,null,null,null,null,null,null,null,null,null,null,null,null,null,0,null,null,null,0,null,0,null,"",""]
[733,null,null,null,null,null,null,null,null,null,null,null,null,null,0,null,null,null,0,null,0,null,"",""]
[734,null,null,null,null,null,null,null,null,null,null,null,null,null,0,null,null,null,0,null,0,null,"",""]
[735,null,null,null,null,null,null,null,null,null,null,null,null,null,0,null,null,null,0,null,0,null,"",""]
[736,null,null,null,null,null,null,null,null,null,null,null,null,null,0,null,null,null,0,null,0,null,"",""]
[{"$f":"+A843+1","v":737},null,null,null,null,null,null,null,null,null,null,null,null,null,{"$f":"J844*M844","v":0},null,null,null,{"$f":"O844*Q844","v":0},null,{"$f":"O844-S844","v":0},null,"",{"$f":"IF(ISBLANK(V844),\"\",S844)","v":""}]
[738,null,null,null,null,null,null,null,null,null,null,null,null,null,0,null,null,null,0,null,0,null,"",""]
[739,null,null,null,null,null,null,null,null,null,null,null,null,null,0,null,null,null,0,null,0,null,"",""]
[740,null,null,null,null,null,null,null,null,null,null,null,null,null,0,null,null,null,0,null,0,null,"",""]
[741,null,null,null,null,null,null,null,null,null,null,null,null,null,0,null,null,null,0,null,0,null,"",""]
[742,null,null,null,null,null,null,null,null,null,null,null,null,null,0,null,null,null,0,null,0,null,{"$f":"IF(ISBLANK(V849),\"\",IF(AND(V849=\"c\",M849>175),(M849-175)*J849,O849))","v":""},""]
[743,null,null,null,null,null,null,null,null,null,null,null,null,null,0,null,null,null,0,null,0,null,"",""]
[744,null,null,null,null,null,null,null,null,null,null,null,null,null,0,null,null,null,0,null,0,null,"",""]
[745,null,null,null,null,null,null,null,null,null,null,null,null,null,0,null,null,null,0,null,0,null,"",""]
[746,null,null,null,null,null,null,null,null,null,null,null,null,null,0,null,null,null,0,null,0,null,"",""]
[747,null,null,null,null,null,null,null,null,null,null,null,null,null,0,null,null,null,0,null,0,null,"",""]
[748,null,null,null,null,null,null,null,null,null,null,null,null,null,0,null,null,null,0,null,0,null,"",""]
[749,null,null,null,null,null,null,null,null,null,null,null,null,null,0,null,null,null,0,null,0,null,"",""]
[750,null,null,null,null,null,null,null,null,null,null,null,null,null,0,null,null,null,0,null,0,null,"",""]
[751,null,null,null,null,null,null,null,null,null,null,null,null,null,0,null,null,null,0,null,0,null,"",""]
[752,null,null,null,null,null,null,null,null,null,null,null,null,null,0,null,null,null,0,null,0,null,"",""]
[{"$f":"+A859+1","v":753},null,null,null,null,null,null,null,null,null,null,null,null,null,{"$f":"J860*M860","v":0},null,null,null,{"$f":"O860*Q860","v":0},null,{"$f":"O860-S860","v":0},null,"",""]
[754,null,null,null,null,null,null,null,null,null,null,null,null,null,0,null,null,null,0,null,0,null,"",""]
[755,null,null,null,null,null,null,null,null,null,null,null,null,null,0,null,null,null,0,null,0,null,"",""]
[756,null,null,null,null,null,null,null,null,null,null,null,null,null,0,null,null,null,0,null,0,null,"",""]
[757,null,null,null,null,null,null,null,null,null,null,null,null,null,0,null,null,null,0,null,0,null,"",""]
[758,null,null,null,null,null,null,null,null,null,null,null,null,null,0,null,null,null,0,null,0,null,"",""]
[759,null,null,null,null,null,null,null,null,null,null,null,null,null,0,null,null,null,0,null,0,null,"",""]
[760,null,null,null,null,null,null,null,null,null,null,null,null,null,0,null,null,null,0,null,0,null,"",""]
[761,null,null,null,null,null,null,null,null,null,null,null,null,null,0,null,null,null,0,null,0,null,"",""]
[762,null,null,null,null,null,null,null,null,null,null,null,null,null,0,null,null,null,0,null,0,null,"",""]
[763,null,null,null,null,null,null,null,null,null,null,null,null,null,0,null,null,null,0,null,0,null,"",""]
[764,null,null,null,null,null,null,null,null,null,null,null,null,null,0,null,null,null,0,null,0,null,"",""]
[765,null,null,null,null,null,null,null,null,null,null,null,null,null,0,null,null,null,0,null,0,null,"",""]
[766,null,null,null,null,null,null,null,null,null,null,null,null,null,0,null,null,null,0,null,0,null,"",""]
[767,null,null,null,null,null,null,null,null,null,null,null,null,null,0,null,null,null,0,null,0,null,"",""]
[768,null,null,null,null,null,null,null,null,null,null,null,null,null,0,null,null,null,0,null,0,null,"",""]
[{"$f":"+A875+1","v":769},null,null,null,null,null,null,null,null,null,null,null,null,null,{"$f":"J876*M876","v":0},null,null,null,{"$f":"O876*Q876","v":0},null,{"$f":"O876-S876","v":0},null,"",""]
[770,null,null,null,null,null,null,null,null,null,null,null,null,null,0,null,null,null,0,null,0,null,"",""]
[771,null,null,null,null,null,null,null,null,null,null,null,null,null,0,null,null,null,0,null,0,null,"",""]
[772,null,null,null,null,null,null,null,null,null,null,null,null,null,0,null,null,null,0,null,0,null,"",""]
[773,null,null,null,null,null,null,null,null,null,null,null,null,null,0,null,null,null,0,null,0,null,"",""]
[774,null,null,null,null,null,null,null,null,null,null,null,null,null,0,null,null,null,0,null,0,null,"",""]
[775,null,null,null,null,null,null,null,null,null,null,null,null,null,0,null,null,null,0,null,0,null,"",""]
[776,null,null,null,null,null,null,null,null,null,null,null,null,null,0,null,null,null,0,null,0,null,"",""]
[777,null,null,null,null,null,null,null,null,null,null,null,null,null,0,null,null,null,0,null,0,null,"",""]
[778,null,null,null,null,null,null,null,null,null,null,null,null,null,0,null,null,null,0,null,0,null,"",""]
[779,null,null,null,null,null,null,null,null,null,null,null,null,null,0,null,null,null,0,null,0,null,"",""]
[780,null,null,null,null,null,null,null,null,null,null,null,null,null,0,null,null,null,0,null,0,null,"",""]
[781,null,null,null,null,null,null,null,null,null,null,null,null,null,0,null,null,null,0,null,0,null,"",""]
[782,null,null,null,null,null,null,null,null,null,null,null,null,null,0,null,null,null,0,null,0,null,"",""]
[783,null,null,null,null,null,null,null,null,null,null,null,null,null,0,null,null,null,0,null,0,null,"",""]
[784,null,null,null,null,null,null,null,null,null,null,null,null,null,0,null,null,null,0,null,0,null,"",""]
[{"$f":"+A891+1","v":785},null,null,null,null,null,null,null,null,null,null,null,null,null,{"$f":"J892*M892","v":0},null,null,null,{"$f":"O892*Q892","v":0},null,{"$f":"O892-S892","v":0},null,"",""]
[786,null,null,null,null,null,null,null,null,null,null,null,null,null,0,null,null,null,0,null,0,null,"",""]
[787,null,null,null,null,null,null,null,null,null,null,null,null,null,0,null,null,null,0,null,0,null,"",""]
[788,null,null,null,null,null,null,null,null,null,null,null,null,null,0,null,null,null,0,null,0,null,"",""]
[789,null,null,null,null,null,null,null,null,null,null,null,null,null,0,null,null,null,0,null,0,null,"",""]
[790,null,null,null,null,null,null,null,null,null,null,null,null,null,0,null,null,null,0,null,0,null,"",""]
[791,null,null,null,null,null,null,null,null,null,null,null,null,null,0,null,null,null,0,null,0,null,"",""]
[792,null,null,null,null,null,null,null,null,null,null,null,null,null,0,null,null,null,0,null,0,null,"",""]
[793,null,null,null,null,null,null,null,null,null,null,null,null,null,0,null,null,null,0,null,0,null,"",""]
[794,null,null,null,null,null,null,null,null,null,null,null,null,null,0,null,null,null,0,null,0,null,"",""]
[795,null,null,null,null,null,null,null,null,null,null,null,null,null,0,null,null,null,0,null,0,null,"",""]
[796,null,null,null,null,null,null,null,null,null,null,null,null,null,0,null,null,null,0,null,0,null,"",""]
[797,null,null,null,null,null,null,null,null,null,null,null,null,null,0,null,null,null,0,null,0,null,"",""]
[798,null,null,null,null,null,null,null,null,null,null,null,null,null,0,null,null,null,0,null,0,null,"",""]
[799,null,null,null,null,null,null,null,null,null,null,null,null,null,0,null,null,null,0,null,0,null,"",""]
[800,null,null,null,null,null,null,null,null,null,null,null,null,null,0,null,null,null,0,null,0,null,"",""]
[{"$f":"+A907+1","v":801},null,null,null,null,null,null,null,null,null,null,null,null,null,{"$f":"J908*M908","v":0},null,null,null,{"$f":"O908*Q908","v":0},null,{"$f":"O908-S908","v":0},null,"",{"$f":"IF(ISBLANK(V908),\"\",S908)","v":""}]
[802,null,null,null,null,null,null,null,null,null,null,null,null,null,0,null,null,null,0,null,0,null,"",""]
[803,null,null,null,null,null,null,null,null,null,null,null,null,null,0,null,null,null,0,null,0,null,"",""]
[804,null,null,null,null,null,null,null,null,null,null,null,null,null,0,null,null,null,0,null,0,null,"",""]
[805,null,null,null,null,null,null,null,null,null,null,null,null,null,0,null,null,null,0,null,0,null,"",""]
[806,null,null,null,null,null,null,null,null,null,null,null,null,null,0,null,null,null,0,null,0,null,{"$f":"IF(ISBLANK(V913),\"\",IF(AND(V913=\"c\",M913>175),(M913-175)*J913,O913))","v":""},""]
[807,null,null,null,null,null,null,null,null,null,null,null,null,null,0,null,null,null,0,null,0,null,"",""]
[808,null,null,null,null,null,null,null,null,null,null,null,null,null,0,null,null,null,0,null,0,null,"",""]
[809,null,null,null,null,null,null,null,null,null,null,null,null,null,0,null,null,null,0,null,0,null,"",""]
[810,null,null,null,null,null,null,null,null,null,null,null,null,null,0,null,null,null,0,null,0,null,"",""]
[811,null,null,null,null,null,null,null,null,null,null,null,null,null,0,null,null,null,0,null,0,null,"",""]
[812,null,null,null,null,null,null,null,null,null,null,null,null,null,0,null,null,null,0,null,0,null,"",""]
[813,null,null,null,null,null,null,null,null,null,null,null,null,null,0,null,null,null,0,null,0,null,"",""]
[814,null,null,null,null,null,null,null,null,null,null,null,null,null,0,null,null,null,0,null,0,null,"",""]
[815,null,null,null,null,null,null,null,null,null,null,null,null,null,0,null,null,null,0,null,0,null,"",""]
[816,null,null,null,null,null,null,null,null,null,null,null,null,null,0,null,null,null,0,null,0,null,"",""]
[{"$f":"+A923+1","v":817},null,null,null,null,null,null,null,null,null,null,null,null,null,{"$f":"J924*M924","v":0},null,null,null,{"$f":"O924*Q924","v":0},null,{"$f":"O924-S924","v":0},null,"",""]
[818,null,null,null,null,null,null,null,null,null,null,null,null,null,0,null,null,null,0,null,0,null,"",""]
[819,null,null,null,null,null,null,null,null,null,null,null,null,null,0,null,null,null,0,null,0,null,"",""]
[820,null,null,null,null,null,null,null,null,null,null,null,null,null,0,null,null,null,0,null,0,null,"",""]
[821,null,null,null,null,null,null,null,null,null,null,null,null,null,0,null,null,null,0,null,0,null,"",""]
[822,null,null,null,null,null,null,null,null,null,null,null,null,null,0,null,null,null,0,null,0,null,"",""]
[823,null,null,null,null,null,null,null,null,null,null,null,null,null,0,null,null,null,0,null,0,null,"",""]
[824,null,null,null,null,null,null,null,null,null,null,null,null,null,0,null,null,null,0,null,0,null,"",""]
[825,null,null,null,null,null,null,null,null,null,null,null,null,null,0,null,null,null,0,null,0,null,"",""]
[826,null,null,null,null,null,null,null,null,null,null,null,null,null,0,null,null,null,0,null,0,null,"",""]
[827,null,null,null,null,null,null,null,null,null,null,null,null,null,0,null,null,null,0,null,0,null,"",""]
[828,null,null,null,null,null,null,null,null,null,null,null,null,null,0,null,null,null,0,null,0,null,"",""]
[829,null,null,null,null,null,null,null,null,null,null,null,null,null,0,null,null,null,0,null,0,null,"",""]
[830,null,null,null,null,null,null,null,null,null,null,null,null,null,0,null,null,null,0,null,0,null,"",""]
[831,null,null,null,null,null,null,null,null,null,null,null,null,null,0,null,null,null,0,null,0,null,"",""]
[832,null,null,null,null,null,null,null,null,null,null,null,null,null,0,null,null,null,0,null,0,null,"",""]
[{"$f":"+A939+1","v":833},null,null,null,null,null,null,null,null,null,null,null,null,null,{"$f":"J940*M940","v":0},null,null,null,{"$f":"O940*Q940","v":0},null,{"$f":"O940-S940","v":0},null,"",""]
[834,null,null,null,null,null,null,null,null,null,null,null,null,null,0,null,null,null,0,null,0,null,"",""]
[835,null,null,null,null,null,null,null,null,null,null,null,null,null,0,null,null,null,0,null,0,null,"",""]
[836,null,null,null,null,null,null,null,null,null,null,null,null,null,0,null,null,null,0,null,0,null,"",""]
[837,null,null,null,null,null,null,null,null,null,null,null,null,null,0,null,null,null,0,null,0,null,"",""]
[838,null,null,null,null,null,null,null,null,null,null,null,null,null,0,null,null,null,0,null,0,null,"",""]
[839,null,null,null,null,null,null,null,null,null,null,null,null,null,0,null,null,null,0,null,0,null,"",""]
[840,null,null,null,null,null,null,null,null,null,null,null,null,null,0,null,null,null,0,null,0,null,"",""]
[841,null,null,null,null,null,null,null,null,null,null,null,null,null,0,null,null,null,0,null,0,null,"",""]
[842,null,null,null,null,null,null,null,null,null,null,null,null,null,0,null,null,null,0,null,0,null,"",""]
[843,null,null,null,null,null,null,null,null,null,null,null,null,null,0,null,null,null,0,null,0,null,"",""]
[844,null,null,null,null,null,null,null,null,null,null,null,null,null,0,null,null,null,0,null,0,null,"",""]
[845,null,null,null,null,null,null,null,null,null,null,null,null,null,0,null,null,null,0,null,0,null,"",""]
[846,null,null,null,null,null,null,null,null,null,null,null,null,null,0,null,null,null,0,null,0,null,"",""]
[847,null,null,null,null,null,null,null,null,null,null,null,null,null,0,null,null,null,0,null,0,null,"",""]
[848,null,null,null,null,null,null,null,null,null,null,null,null,null,0,null,null,null,0,null,0,null,"",""]
[{"$f":"+A955+1","v":849},null,null,null,null,null,null,null,null,null,null,null,null,null,{"$f":"J956*M956","v":0},null,null,null,{"$f":"O956*Q956","v":0},null,{"$f":"O956-S956","v":0},null,"",""]
[850,null,null,null,null,null,null,null,null,null,null,null,null,null,0,null,null,null,0,null,0,null,"",""]
[851,null,null,null,null,null,null,null,null,null,null,null,null,null,0,null,null,null,0,null,0,null,"",""]
[852,null,null,null,null,null,null,null,null,null,null,null,null,null,0,null,null,null,0,null,0,null,"",""]
[853,null,null,null,null,null,null,null,null,null,null,null,null,null,0,null,null,null,0,null,0,null,"",""]
[854,null,null,null,null,null,null,null,null,null,null,null,null,null,0,null,null,null,0,null,0,null,"",""]
[855,null,null,null,null,null,null,null,null,null,null,null,null,null,0,null,null,null,0,null,0,null,"",""]
[856,null,null,null,null,null,null,null,null,null,null,null,null,null,0,null,null,null,0,null,0,null,"",""]
[857,null,null,null,null,null,null,null,null,null,null,null,null,null,0,null,null,null,0,null,0,null,"",""]
[858,null,null,null,null,null,null,null,null,null,null,null,null,null,0,null,null,null,0,null,0,null,"",""]
[859,null,null,null,null,null,null,null,null,null,null,null,null,null,0,null,null,null,0,null,0,null,"",""]
[860,null,null,null,null,null,null,null,null,null,null,null,null,null,0,null,null,null,0,null,0,null,"",""]
[861,null,null,null,null,null,null,null,null,null,null,null,null,null,0,null,null,null,0,null,0,null,"",""]
[862,null,null,null,null,null,null,null,null,null,null,null,null,null,0,null,null,null,0,null,0,null,"",""]
[863,null,null,null,null,null,null,null,null,null,null,null,null,null,0,null,null,null,0,null,0,null,"",""]
[864,null,null,null,null,null,null,null,null,null,null,null,null,null,0,null,null,null,0,null,0,null,"",""]
[{"$f":"+A971+1","v":865},null,null,null,null,null,null,null,null,null,null,null,null,null,{"$f":"J972*M972","v":0},null,null,null,{"$f":"O972*Q972","v":0},null,{"$f":"O972-S972","v":0},null,"",{"$f":"IF(ISBLANK(V972),\"\",S972)","v":""}]
[866,null,null,null,null,null,null,null,null,null,null,null,null,null,0,null,null,null,0,null,0,null,"",""]
[867,null,null,null,null,null,null,null,null,null,null,null,null,null,0,null,null,null,0,null,0,null,"",""]
[868,null,null,null,null,null,null,null,null,null,null,null,null,null,0,null,null,null,0,null,0,null,"",""]
[869,null,null,null,null,null,null,null,null,null,null,null,null,null,0,null,null,null,0,null,0,null,"",""]
[870,null,null,null,null,null,null,null,null,null,null,null,null,null,0,null,null,null,0,null,0,null,{"$f":"IF(ISBLANK(V977),\"\",IF(AND(V977=\"c\",M977>175),(M977-175)*J977,O977))","v":""},""]
[871,null,null,null,null,null,null,null,null,null,null,null,null,null,0,null,null,null,0,null,0,null,"",""]
[872,null,null,null,null,null,null,null,null,null,null,null,null,null,0,null,null,null,0,null,0,null,"",""]
[873,null,null,null,null,null,null,null,null,null,null,null,null,null,0,null,null,null,0,null,0,null,"",""]
[874,null,null,null,null,null,null,null,null,null,null,null,null,null,0,null,null,null,0,null,0,null,"",""]
[875,null,null,null,null,null,null,null,null,null,null,null,null,null,0,null,null,null,0,null,0,null,"",""]
[876,null,null,null,null,null,null,null,null,null,null,null,null,null,0,null,null,null,0,null,0,null,"",""]
[877,null,null,null,null,null,null,null,null,null,null,null,null,null,0,null,null,null,0,null,0,null,"",""]
[878,null,null,null,null,null,null,null,null,null,null,null,null,null,0,null,null,null,0,null,0,null,"",""]
[879,null,null,null,null,null,null,null,null,null,null,null,null,null,0,null,null,null,0,null,0,null,"",""]
[880,null,null,null,null,null,null,null,null,null,null,null,null,null,0,null,null,null,0,null,0,null,"",""]
[{"$f":"+A987+1","v":881},null,null,null,null,null,null,null,null,null,null,null,null,null,{"$f":"J988*M988","v":0},null,null,null,{"$f":"O988*Q988","v":0},null,{"$f":"O988-S988","v":0},null,"",""]
[882,null,null,null,null,null,null,null,null,null,null,null,null,null,0,null,null,null,0,null,0,null,"",""]
[883,null,null,null,null,null,null,null,null,null,null,null,null,null,0,null,null,null,0,null,0,null,"",""]
[884,null,null,null,null,null,null,null,null,null,null,null,null,null,0,null,null,null,0,null,0,null,"",""]
[885,null,null,null,null,null,null,null,null,null,null,null,null,null,0,null,null,null,0,null,0,null,"",""]
[886,null,null,null,null,null,null,null,null,null,null,null,null,null,0,null,null,null,0,null,0,null,"",""]
[887,null,null,null,null,null,null,null,null,null,null,null,null,null,0,null,null,null,0,null,0,null,"",""]
[888,null,null,null,null,null,null,null,null,null,null,null,null,null,0,null,null,null,0,null,0,null,"",""]
[889,null,null,null,null,null,null,null,null,null,null,null,null,null,0,null,null,null,0,null,0,null,"",""]
[890,null,null,null,null,null,null,null,null,null,null,null,null,null,0,null,null,null,0,null,0,null,"",""]
[891,null,null,null,null,null,null,null,null,null,null,null,null,null,0,null,null,null,0,null,0,null,"",""]
[892,null,null,null,null,null,null,null,null,null,null,null,null,null,0,null,null,null,0,null,0,null,"",""]
[893,null,null,null,null,null,null,null,null,null,null,null,null,null,0,null,null,null,0,null,0,null,"",""]
[894,null,null,null,null,null,null,null,null,null,null,null,null,null,0,null,null,null,0,null,0,null,"",""]
[895,null,null,null,null,null,null,null,null,null,null,null,null,null,0,null,null,null,0,null,0,null,"",""]
[896,null,null,null,null,null,null,null,null,null,null,null,null,null,0,null,null,null,0,null,0,null,"",""]
[{"$f":"+A1003+1","v":897},null,null,null,null,null,null,null,null,null,null,null,null,null,{"$f":"J1004*M1004","v":0},null,null,null,{"$f":"O1004*Q1004","v":0},null,{"$f":"O1004-S1004","v":0},null,"",""]
[898,null,null,null,null,null,null,null,null,null,null,null,null,null,0,null,null,null,0,null,0,null,"",""]
[899,null,null,null,null,null,null,null,null,null,null,null,null,null,0,null,null,null,0,null,0,null,"",""]
[900,null,null,null,null,null,null,null,null,null,null,null,null,null,0,null,null,null,0,null,0,null,"",""]
[901,null,null,null,null,null,null,null,null,null,null,null,null,null,0,null,null,null,0,null,0,null,"",""]
[902,null,null,null,null,null,null,null,null,null,null,null,null,null,0,null,null,null,0,null,0,null,"",""]
[903,null,null,null,null,null,null,null,null,null,null,null,null,null,0,null,null,null,0,null,0,null,"",""]
[904,null,null,null,null,null,null,null,null,null,null,null,null,null,0,null,null,null,0,null,0,null,"",""]
[905,null,null,null,null,null,null,null,null,null,null,null,null,null,0,null,null,null,0,null,0,null,"",""]
[906,null,null,null,null,null,null,null,null,null,null,null,null,null,0,null,null,null,0,null,0,null,"",""]
[907,null,null,null,null,null,null,null,null,null,null,null,null,null,0,null,null,null,0,null,0,null,"",""]
[908,null,null,null,null,null,null,null,null,null,null,null,null,null,0,null,null,null,0,null,0,null,"",""]
[909,null,null,null,null,null,null,null,null,null,null,null,null,null,0,null,null,null,0,null,0,null,"",""]
[910,null,null,null,null,null,null,null,null,null,null,null,null,null,0,null,null,null,0,null,0,null,"",""]
[911,null,null,null,null,null,null,null,null,null,null,null,null,null,0,null,null,null,0,null,0,null,"",""]
[912,null,null,null,null,null,null,null,null,null,null,null,null,null,0,null,null,null,0,null,0,null,"",""]
[{"$f":"+A1019+1","v":913},null,null,null,null,null,null,null,null,null,null,null,null,null,{"$f":"J1020*M1020","v":0},null,null,null,{"$f":"O1020*Q1020","v":0},null,{"$f":"O1020-S1020","v":0},null,"",""]
[914,null,null,null,null,null,null,null,null,null,null,null,null,null,0,null,null,null,0,null,0,null,"",""]
[915,null,null,null,null,null,null,null,null,null,null,null,null,null,0,null,null,null,0,null,0,null,"",""]
[916,null,null,null,null,null,null,null,null,null,null,null,null,null,0,null,null,null,0,null,0,null,"",""]
[917,null,null,null,null,null,null,null,null,null,null,null,null,null,0,null,null,null,0,null,0,null,"",""]
[918,null,null,null,null,null,null,null,null,null,null,null,null,null,0,null,null,null,0,null,0,null,"",""]
[919,null,null,null,null,null,null,null,null,null,null,null,null,null,0,null,null,null,0,null,0,null,"",""]
[920,null,null,null,null,null,null,null,null,null,null,null,null,null,0,null,null,null,0,null,0,null,"",""]
[921,null,null,null,null,null,null,null,null,null,null,null,null,null,0,null,null,null,0,null,0,null,"",""]
[922,null,null,null,null,null,null,null,null,null,null,null,null,null,0,null,null,null,0,null,0,null,"",""]
[923,null,null,null,null,null,null,null,null,null,null,null,null,null,0,null,null,null,0,null,0,null,"",""]
[924,null,null,null,null,null,null,null,null,null,null,null,null,null,0,null,null,null,0,null,0,null,"",""]
[925,null,null,null,null,null,null,null,null,null,null,null,null,null,0,null,null,null,0,null,0,null,"",""]
[926,null,null,null,null,null,null,null,null,null,null,null,null,null,0,null,null,null,0,null,0,null,"",""]
[927,null,null,null,null,null,null,null,null,null,null,null,null,null,0,null,null,null,0,null,0,null,"",""]
[928,null,null,null,null,null,null,null,null,null,null,null,null,null,0,null,null,null,0,null,0,null,"",""]
[{"$f":"+A1035+1","v":929},null,null,null,null,null,null,null,null,null,null,null,null,null,{"$f":"J1036*M1036","v":0},null,null,null,{"$f":"O1036*Q1036","v":0},null,{"$f":"O1036-S1036","v":0},null,"",{"$f":"IF(ISBLANK(V1036),\"\",S1036)","v":""}]
[930,null,null,null,null,null,null,null,null,null,null,null,null,null,0,null,null,null,0,null,0,null,"",""]
[931,null,null,null,null,null,null,null,null,null,null,null,null,null,0,null,null,null,0,null,0,null,"",""]
[932,null,null,null,null,null,null,null,null,null,null,null,null,null,0,null,null,null,0,null,0,null,"",""]
[933,null,null,null,null,null,null,null,null,null,null,null,null,null,0,null,null,null,0,null,0,null,"",""]
[934,null,null,null,null,null,null,null,null,null,null,null,null,null,0,null,null,null,0,null,0,null,{"$f":"IF(ISBLANK(V1041),\"\",IF(AND(V1041=\"c\",M1041>175),(M1041-175)*J1041,O1041))","v":""},""]
[935,null,null,null,null,null,null,null,null,null,null,null,null,null,0,null,null,null,0,null,0,null,"",""]
[936,null,null,null,null,null,null,null,null,null,null,null,null,null,0,null,null,null,0,null,0,null,"",""]
[937,null,null,null,null,null,null,null,null,null,null,null,null,null,0,null,null,null,0,null,0,null,"",""]
[938,null,null,null,null,null,null,null,null,null,null,null,null,null,0,null,null,null,0,null,0,null,"",""]
[939,null,null,null,null,null,null,null,null,null,null,null,null,null,0,null,null,null,0,null,0,null,"",""]
[940,null,null,null,null,null,null,null,null,null,null,null,null,null,0,null,null,null,0,null,0,null,"",""]
[941,null,null,null,null,null,null,null,null,null,null,null,null,null,0,null,null,null,0,null,0,null,"",""]
[942,null,null,null,null,null,null,null,null,null,null,null,null,null,0,null,null,null,0,null,0,null,"",""]
[943,null,null,null,null,null,null,null,null,null,null,null,null,null,0,null,null,null,0,null,0,null,"",""]
[944,null,null,null,null,null,null,null,null,null,null,null,null,null,0,null,null,null,0,null,0,null,"",""]
[{"$f":"+A1051+1","v":945},null,null,null,null,null,null,null,null,null,null,null,null,null,{"$f":"J1052*M1052","v":0},null,null,null,{"$f":"O1052*Q1052","v":0},null,{"$f":"O1052-S1052","v":0},null,"",""]
[946,null,null,null,null,null,null,null,null,null,null,null,null,null,0,null,null,null,0,null,0,null,"",""]
[947,null,null,null,null,null,null,null,null,null,null,null,null,null,0,null,null,null,0,null,0,null,"",""]
[948,null,null,null,null,null,null,null,null,null,null,null,null,null,0,null,null,null,0,null,0,null,"",""]
[949,null,null,null,null,null,null,null,null,null,null,null,null,null,0,null,null,null,0,null,0,null,"",""]
[950,null,null,null,null,null,null,null,null,null,null,null,null,null,0,null,null,null,0,null,0,null,"",""]
[951,null,null,null,null,null,null,null,null,null,null,null,null,null,0,null,null,null,0,null,0,null,"",""]
[952,null,null,null,null,null,null,null,null,null,null,null,null,null,0,null,null,null,0,null,0,null,"",""]
[953,null,null,null,null,null,null,null,null,null,null,null,null,null,0,null,null,null,0,null,0,null,"",""]
[954,null,null,null,null,null,null,null,null,null,null,null,null,null,0,null,null,null,0,null,0,null,"",""]
[955,null,null,null,null,null,null,null,null,null,null,null,null,null,0,null,null,null,0,null,0,null,"",""]
[956,null,null,null,null,null,null,null,null,null,null,null,null,null,0,null,null,null,0,null,0,null,"",""]
[957,null,null,null,null,null,null,null,null,null,null,null,null,null,0,null,null,null,0,null,0,null,"",""]
[958,null,null,null,null,null,null,null,null,null,null,null,null,null,0,null,null,null,0,null,0,null,"",""]
[959,null,null,null,null,null,null,null,null,null,null,null,null,null,0,null,null,null,0,null,0,null,"",""]
[960,null,null,null,null,null,null,null,null,null,null,null,null,null,0,null,null,null,0,null,0,null,"",""]
[{"$f":"+A1067+1","v":961},null,null,null,null,null,null,null,null,null,null,null,null,null,{"$f":"J1068*M1068","v":0},null,null,null,{"$f":"O1068*Q1068","v":0},null,{"$f":"O1068-S1068","v":0},null,"",""]
[962,null,null,null,null,null,null,null,null,null,null,null,null,null,0,null,null,null,0,null,0,null,"",""]
[963,null,null,null,null,null,null,null,null,null,null,null,null,null,0,null,null,null,0,null,0,null,"",""]
[964,null,null,null,null,null,null,null,null,null,null,null,null,null,0,null,null,null,0,null,0,null,"",""]
[965,null,null,null,null,null,null,null,null,null,null,null,null,null,0,null,null,null,0,null,0,null,"",""]
[966,null,null,null,null,null,null,null,null,null,null,null,null,null,0,null,null,null,0,null,0,null,"",""]
[967,null,null,null,null,null,null,null,null,null,null,null,null,null,0,null,null,null,0,null,0,null,"",""]
[968,null,null,null,null,null,null,null,null,null,null,null,null,null,0,null,null,null,0,null,0,null,"",""]
[969,null,null,null,null,null,null,null,null,null,null,null,null,null,0,null,null,null,0,null,0,null,"",""]
[970,null,null,null,null,null,null,null,null,null,null,null,null,null,0,null,null,null,0,null,0,null,"",""]
[971,null,null,null,null,null,null,null,null,null,null,null,null,null,0,null,null,null,0,null,0,null,"",""]
[972,null,null,null,null,null,null,null,null,null,null,null,null,null,0,null,null,null,0,null,0,null,"",""]
[973,null,null,null,null,null,null,null,null,null,null,null,null,null,0,null,null,null,0,null,0,null,"",""]
[974,null,null,null,null,null,null,null,null,null,null,null,null,null,0,null,null,null,0,null,0,null,"",""]
[975,null,null,null,null,null,null,null,null,null,null,null,null,null,0,null,null,null,0,null,0,null,"",""]
[976,null,null,null,null,null,null,null,null,null,null,null,null,null,0,null,null,null,0,null,0,null,"",""]
[{"$f":"+A1083+1","v":977},null,null,null,null,null,null,null,null,null,null,null,null,null,{"$f":"J1084*M1084","v":0},null,null,null,{"$f":"O1084*Q1084","v":0},null,{"$f":"O1084-S1084","v":0},null,"",""]
[978,null,null,null,null,null,null,null,null,null,null,null,null,null,0,null,null,null,0,null,0,null,"",""]
[979,null,null,null,null,null,null,null,null,null,null,null,null,null,0,null,null,null,0,null,0,null,"",""]
[980,null,null,null,null,null,null,null,null,null,null,null,null,null,0,null,null,null,0,null,0,null,"",""]
[981,null,null,null,null,null,null,null,null,null,null,null,null,null,0,null,null,null,0,null,0,null,"",""]
[982,null,null,null,null,null,null,null,null,null,null,null,null,null,0,null,null,null,0,null,0,null,"",""]
[983,null,null,null,null,null,null,null,null,null,null,null,null,null,0,null,null,null,0,null,0,null,"",""]
[984,null,null,null,null,null,null,null,null,null,null,null,null,null,0,null,null,null,0,null,0,null,"",""]
[985,null,null,null,null,null,null,null,null,null,null,null,null,null,0,null,null,null,0,null,0,null,"",""]
[986,null,null,null,null,null,null,null,null,null,null,null,null,null,0,null,null,null,0,null,0,null,"",""]
[987,null,null,null,null,null,null,null,null,null,null,null,null,null,0,null,null,null,0,null,0,null,"",""]
[988,null,null,null,null,null,null,null,null,null,null,null,null,null,0,null,null,null,0,null,0,null,"",""]
[989,null,null,null,null,null,null,null,null,null,null,null,null,null,0,null,null,null,0,null,0,null,"",""]
[990,null,null,null,null,null,null,null,null,null,null,null,null,null,0,null,null,null,0,null,0,null,"",""]
[991,null,null,null,null,null,null,null,null,null,null,null,null,null,0,null,null,null,0,null,0,null,"",""]
[992,null,null,null,null,null,null,null,null,null,null,null,null,null,0,null,null,null,0,null,0,null,"",""]
[{"$f":"+A1099+1","v":993},null,null,null,null,null,null,null,null,null,null,null,null,null,{"$f":"J1100*M1100","v":0},null,null,null,{"$f":"O1100*Q1100","v":0},null,{"$f":"O1100-S1100","v":0},null,"",{"$f":"IF(ISBLANK(V1100),\"\",S1100)","v":""}]
[994,null,null,null,null,null,null,null,null,null,null,null,null,null,0,null,null,null,0,null,0,null,"",""]
[995,null,null,null,null,null,null,null,null,null,null,null,null,null,0,null,null,null,0,null,0,null,"",""]
[996,null,null,null,null,null,null,null,null,null,null,null,null,null,0,null,null,null,0,null,0,null,"",""]
[997,null,null,null,null,null,null,null,null,null,null,null,null,null,0,null,null,null,0,null,0,null,"",""]
[998,null,null,null,null,null,null,null,null,null,null,null,null,null,0,null,null,null,0,null,0,null,{"$f":"IF(ISBLANK(V1105),\"\",IF(AND(V1105=\"c\",M1105>175),(M1105-175)*J1105,O1105))","v":""},""]
[999,null,null,null,null,null,null,null,null,null,null,null,null,null,0,null,null,null,0,null,0,null,"",""]
[1000,null,null,null,null,null,null,null,null,null,null,null,null,null,0,null,null,null,0,null,0,null,"",""]
[1001,null,null,null,null,null,null,null,null,null,null,null,null,null,0,null,null,null,0,null,0,null,"",""]
[1002,null,null,null,null,null,null,null,null,null,null,null,null,null,0,null,null,null,0,null,0,null,"",""]
[1003,null,null,null,null,null,null,null,null,null,null,null,null,null,0,null,null,null,0,null,0,null,"",""]
[1004,null,null,null,null,null,null,null,null,null,null,null,null,null,0,null,null,null,0,null,0,null,"",""]
[1005,null,null,null,null,null,null,null,null,null,null,null,null,null,0,null,null,null,0,null,0,null,"",""]

{"sheet":"Sheet2","index":1,"n_rows":0,"n_cols":0,"rows_kept":0,"cut":false,"hidden":false,"merged":[]}